Workbook

Sheet Sheet1
A2: Deaths ('000) attributable to inadequate water, sanitation and hygiene, by cause and WHO member state for the year 2016
B4: Afghanistan | C4: Angola | D4: Albania | E4: United Arab Emirates | F4: Argentina | G4: Armenia | H4: Antigua and Barbuda | I4: Australia | J4: Austria | K4: Azerbaijan | L4: Burundi | M4: Belgium | N4: Benin | O4: Burkina Faso | P4: Bangladesh | Q4: Bulgaria | R4: Bahrain | S4: Bahamas | T4: Bosnia and Herzegovina | U4: Belarus | V4: Belize | W4: Bolivia (Plurinational State of) | X4: Brazil | Y4: Barbados | Z4: Brunei Darussalam | AA4: Bhutan | AB4: Botswana | AC4: Central African Republic | AD4: Canada | AE4: Switzerland | AF4: Chile | AG4: China | AH4: Côte d'Ivoire | AI4: Cameroon | AJ4: Democratic Republic of the Congo | AK4: Congo | AL4: Colombia | AM4: Comoros | AN4: Cape Verde | AO4: Costa Rica | AP4: Cuba | AQ4: Cyprus | AR4: Czech Republic | AS4: Germany | AT4: Djibouti | AU4: Denmark | AV4: Dominican Republic | AW4: Algeria | AX4: Ecuador | AY4: Egypt | AZ4: Eritrea | BA4: Spain | BB4: Estonia | BC4: Ethiopia | BD4: Finland | BE4: Fiji | BF4: France | BG4: Micronesia (Federated States of) | BH4: Gabon | BI4: United Kingdom | BJ4: Georgia | BK4: Ghana | BL4: Guinea | BM4: Gambia | BN4: Guinea-Bissau | BO4: Equatorial Guinea | BP4: Greece | BQ4: Grenada | BR4: Guatemala | BS4: Guyana | BT4: Honduras | BU4: Croatia | BV4: Haiti | BW4: Hungary | BX4: Indonesia | BY4: India | BZ4: Ireland | CA4: Iran (Islamic Republic of) | CB4: Iraq | CC4: Iceland | CD4: Israel | CE4: Italy | CF4: Jamaica | CG4: Jordan | CH4: Japan | CI4: Kazakhstan | CJ4: Kenya | CK4: Kyrgyzstan | CL4: Cambodia | CM4: Kiribati | CN4: Republic of Korea | CO4: Kuwait | CP4: Lao People's Democratic Republic | CQ4: Lebanon | CR4: Liberia | CS4: Libya | CT4: Saint Lucia | CU4: Sri Lanka | CV4: Lesotho | CW4: Lithuania | CX4: Luxembourg | CY4: Latvia | CZ4: Morocco | DA4: Republic of Moldova | DB4: Madagascar | DC4: Maldives | DD4: Mexico | DE4: The former Yugoslav Republic of Macedonia | DF4: Mali | DG4: Malta | DH4: Myanmar | DI4: Montenegro | DJ4: Mongolia | DK4: Mozambique | DL4: Mauritania | DM4: Mauritius | DN4: Malawi | DO4: Malaysia | DP4: Namibia | DQ4: Niger | DR4: Nigeria | DS4: Nicaragua | DT4: Netherlands | DU4: Norway | DV4: Nepal | DW4: New Zealand | DX4: Oman | DY4: Pakistan | DZ4: Panama | EA4: Peru | EB4: Philippines | EC4: Papua New Guinea | ED4: Poland | EE4: Democratic People's Republic of Korea | EF4: Portugal | EG4: Paraguay | EH4: Qatar | EI4: Romania | EJ4: Russian Federation | EK4: Rwanda | EL4: Saudi Arabia | EM4: Sudan | EN4: Senegal | EO4: Singapore | EP4: Solomon Islands | EQ4: Sierra Leone | ER4: El Salvador | ES4: Somalia | ET4: Serbia | EU4: South Sudan | EV4: Sao Tome and Principe | EW4: Suriname | EX4: Slovakia | EY4: Slovenia | EZ4: Sweden | FA4: Eswatini | FB4: Seychelles | FC4: Syrian Arab Republic | FD4: Chad | FE4: Togo | FF4: Thailand | FG4: Tajikistan | FH4: Turkmenistan | FI4: Timor-Leste | FJ4: Tonga | FK4: Trinidad and Tobago | FL4: Tunisia | FM4: Turkey | FN4: United Republic of Tanzania | FO4: Uganda | FP4: Ukraine | FQ4: Uruguay | FR4: United States of America | FS4: Uzbekistan | FT4: Saint Vincent and the Grenadines | FU4: Venezuela (Bolivarian Republic of) | FV4: Viet Nam | FW4: Vanuatu | FX4: Samoa | FY4: Yemen | FZ4: South Africa | GA4: Zambia | GB4: Zimbabwe
A5: Population ('000) | B5: 34656.027 | C5: 28813.475 | D5: 2926.346 | E5: 9269.61 | F5: 43847.43 | G5: 2924.817 | H5: 100.965 | I5: 24125.844 | J5: 8712.134 | K5: 9725.378 | L5: 10524.125 | M5: 11358.376 | N5: 10872.305 | O5: 18646.436 | P5: 162951.549 | Q5: 7131.487 | R5: 1425.173 | S5: 391.232 | T5: 3516.814 | U5: 9480.052 | V5: 366.954 | W5: 10887.879 | X5: 207652.86 | Y5: 284.993 | Z5: 423.195 | AA5: 797.753 | AB5: 2250.256 | AC5: 4594.618 | AD5: 36289.816 | AE5: 8401.744 | AF5: 17909.759 | AG5: 1411415.363 | AH5: 23695.923 | AI5: 23439.194 | AJ5: 78736.162 | AK5: 5125.827 | AL5: 48653.432 | AM5: 795.603 | AN5: 539.559 | AO5: 4857.274 | AP5: 11475.979 | AQ5: 1170.128 | AR5: 10610.95 | AS5: 81914.668 | AT5: 942.344 | AU5: 5711.867 | AV5: 10648.787 | AW5: 40606.051 | AX5: 16385.07 | AY5: 95688.682 | AZ5: 4954.643 | BA5: 46347.577 | BB5: 1312.451 | BC5: 102403.2 | BD5: 5503.131 | BE5: 898.766 | BF5: 64720.689 | BG5: 104.936 | BH5: 1979.787 | BI5: 65788.589 | BJ5: 3925.402 | BK5: 28206.727 | BL5: 12395.916 | BM5: 2038.507 | BN5: 1815.702 | BO5: 1221.495 | BP5: 11183.715 | BQ5: 107.319 | BR5: 16582.465 | BS5: 773.302 | BT5: 9112.865 | BU5: 4213.267 | BV5: 10847.338 | BW5: 9753.278 | BX5: 261115.454 | BY5: 1324171.357 | BZ5: 4726.076 | CA5: 80277.43 | CB5: 37202.581 | CC5: 332.472 | CD5: 8191.822 | CE5: 59429.943 | CF5: 2881.355 | CG5: 9455.799 | CH5: 127748.505 | CI5: 17987.74 | CJ5: 48461.564 | CK5: 5955.737 | CL5: 15762.371 | CM5: 114.388 | CN5: 50791.925 | CO5: 4052.581 | CP5: 6758.354 | CQ5: 6006.669 | CR5: 4613.828 | CS5: 6293.254 | CT5: 178.011 | CU5: 20798.491 | CV5: 2203.825 | CW5: 2908.234 | CX5: 575.739 | CY5: 1970.526 | CZ5: 35276.793 | DA5: 4059.609 | DB5: 24894.543 | DC5: 427.753 | DD5: 127540.43 | DE5: 2081.2 | DF5: 17994.835 | DG5: 429.357 | DH5: 52885.215 | DI5: 628.614 | DJ5: 3027.396 | DK5: 28829.471 | DL5: 4301.022 | DM5: 1262.126 | DN5: 18091.58 | DO5: 31187.264 | DP5: 2479.711 | DQ5: 20672.98 | DR5: 185989.645 | DS5: 6149.929 | DT5: 16987.325 | DU5: 5254.691 | DV5: 28982.772 | DW5: 4660.834 | DX5: 4424.757 | DY5: 193203.481 | DZ5: 4034.124 | EA5: 31773.838 | EB5: 103320.224 | EC5: 8084.993 | ED5: 38224.407 | EE5: 25368.619 | EF5: 10371.628 | EG5: 6725.303 | EH5: 2569.801 | EI5: 19778.087 | EJ5: 143964.51 | EK5: 11917.511 | EL5: 32275.689 | EM5: 39578.826 | EN5: 15411.614 | EO5: 5622.453 | EP5: 599.426 | EQ5: 7396.182 | ER5: 6344.72 | ES5: 14317.989 | ET5: 8820.081 | EU5: 12230.73 | EV5: 199.909 | EW5: 558.36 | EX5: 5444.225 | EY5: 2077.86 | EZ5: 9837.541 | FA5: 1343.098 | FB5: 94.229 | FC5: 18430.453 | FD5: 14452.545 | FE5: 7606.369 | FF5: 68863.519 | FG5: 8734.951 | FH5: 5662.542 | FI5: 1268.667 | FJ5: 107.118 | FK5: 1364.965 | FL5: 11403.249 | FM5: 79512.426 | FN5: 55572.195 | FO5: 41487.969 | FP5: 44438.626 | FQ5: 3444.012 | FR5: 322179.605 | FS5: 31446.789 | FT5: 109.644 | FU5: 31568.183 | FV5: 94569.066 | FW5: 270.405 | FX5: 195.137 | FY5: 27584.209 | FZ5: 56015.475 | GA5: 16591.381 | GB5: 16150.357
A6: Total deaths | B6: 248.2200649 | C6: 225.7083476 | D6: 26.08512967 | E6: 15.09535952 | F6: 327.9808265 | G6: 28.18071905 | H6: 0.64708683 | I6: 159.5013619 | J6: 80.65130879 | K6: 62.50955429 | L6: 95.02782287 | M6: 110.6923798 | N6: 98.43911851 | O6: 159.4457287 | P6: 855.7005949 | Q6: 106.4113718 | R6: 2.791863475 | S6: 2.396492917 | T6: 38.43621328 | U6: 118.7441464 | V6: 2.015885046 | W6: 71.21585938 | X6: 1320.398887 | Y6: 3.219189304 | Z6: 1.634166519 | AA6: 4.705377976 | AB6: 15.75361417 | AC6: 59.91826702 | AD6: 256.2230375 | AE6: 67.77173706 | AF6: 109.6117411 | AG6: 10372.67185 | AH6: 276.7150711 | AI6: 234.7671869 | AJ6: 740.9290159 | AK6: 38.39656568 | AL6: 282.4323192 | AM6: 5.834494618 | AN6: 2.946082032 | AO6: 24.64244534 | AP6: 98.48157878 | AQ6: 8.261400458 | AR6: 107.7312862 | AS6: 920.5566725 | AT6: 7.421400221 | AU6: 51.69083881 | AV6: 65.66843519 | AW6: 190.284442 | AX6: 84.16856476 | AY6: 608.4408457 | AZ6: 34.25870318 | BA6: 418.4968319 | BB6: 15.26858923 | BC6: 700.108823 | BD6: 53.36901769 | BE6: 6.462280286 | BF6: 557.6443451 | BG6: 0.6430964035 | BH6: 15.00422915 | BI6: 600.2595505 | BJ6: 56.80372928 | BK6: 221.3112353 | BL6: 117.2276172 | BM6: 15.60132463 | BN6: 16.49582558 | BO6: 11.57302765 | BP6: 121.0827076 | BQ6: 0.7777486943 | BR6: 80.14901707 | BS6: 6.555598265 | BT6: 39.43630624 | BU6: 51.54701624 | BV6: 92.25101408 | BW6: 127.0980596 | BX6: 1863.048308 | BY6: 9568.619338 | BZ6: 30.64773854 | CA6: 371.465437 | CB6: 189.6386118 | CC6: 2.247523507 | CD6: 44.5097664 | CE6: 639.8009724 | CF6: 19.72688959 | CG6: 36.42457079 | CH6: 1310.7248 | CI6: 147.9248869 | CJ6: 284.1183211 | CK6: 36.42839678 | CL6: 93.02213835 | CM6: 0.7920200034 | CN6: 281.0307445 | CO6: 11.02321724 | CP6: 47.24127479 | CQ6: 38.3075117 | CR6: 36.59603408 | CS6: 33.67179652 | CT6: 1.328387479 | CU6: 143.4248655 | CV6: 29.88565614 | CW6: 40.86708744 | CX6: 3.90698815 | CY6: 27.78179874 | CZ6: 181.9949015 | DA6: 46.78938332 | DB6: 156.0566817 | DC6: 1.277936165 | DD6: 652.8602807 | DE6: 20.19538285 | DF6: 184.1726849 | DG6: 3.481912872 | DH6: 430.0559691 | DI6: 6.515495355 | DJ6: 18.68857815 | DK6: 257.1752992 | DL6: 32.4069359 | DM6: 10.02195663 | DN6: 122.9763437 | DO6: 154.1003489 | DP6: 18.93807412 | DQ6: 199.3119004 | DR6: 2127.624797 | DS6: 29.16881119 | DT6: 149.0887478 | DU6: 40.91436869 | DV6: 182.9274133 | DW6: 30.61157406 | DX6: 11.23022007 | DY6: 1403.088259 | DZ6: 20.36581453 | EA6: 172.4986202 | EB6: 662.6204972 | EC6: 56.20388423 | ED6: 392.1705472 | EE6: 222.7825571 | EF6: 107.2315621 | EG6: 36.35971122 | EH6: 3.958164868 | EI6: 257.2886032 | EJ6: 1870.038761 | EK6: 66.10847993 | EL6: 113.5334633 | EM6: 281.9003725 | EN6: 94.09318665 | EO6: 28.46902976 | EP6: 2.771117797 | EQ6: 89.48342081 | ER6: 42.15315405 | ES6: 167.0227138 | ET6: 107.3406359 | EU6: 121.3433243 | EV6: 1.137296015 | EW6: 3.994613481 | EX6: 51.05843474 | EY6: 19.96610993 | EZ6: 91.16312328 | FA6: 12.99552536 | FB6: 0.7846620775 | FC6: 150.4014424 | FD6: 173.7679352 | FE6: 64.68199043 | FF6: 539.0600641 | FG6: 46.13549535 | FH6: 39.58185827 | FI6: 7.191573894 | FJ6: 0.6315840186 | FK6: 12.11799714 | FL6: 72.1408328 | FM6: 455.3919927 | FN6: 408.7342322 | FO6: 296.5817006 | FP6: 635.7027641 | FQ6: 32.7391721 | FR6: 2802.154547 | FS6: 171.4437936 | FT6: 0.8921759286 | FU6: 180.9558743 | FV6: 548.8360487 | FW6: 1.316072866 | FX6: 0.9553911941 | FY6: 174.1220175 | FZ6: 525.8078513 | GA6: 124.8169746 | GB6: 129.7362031
A7: Total WASH-attributable deaths | B7: =SUM(B10:B15,B17) -> 7.32675049 | C7: 27.43380966 | D7: 0.05859453997 | E7: 0.03307679966 | F7: 3.675669931 | G7: 0.04576699315 | H7: 0.002913824407 | I7: 0.357295178 | J7: 0.1095346193 | K7: 0.2822445144 | L7: 12.3202728 | M7: 0.5363427957 | N7: 13.38858359 | O7: 28.8438367 | P7: 23.41396091 | Q7: 0.2026486865 | R7: 0.006297726875 | S7: 0.008166882679 | T7: 0.04867698737 | U7: 0.1130357114 | V7: 0.01513240322 | W7: 1.310252443 | X7: 12.19819884 | Y7: 0.02418402577 | Z7: 0.005221717999 | AA7: 0.05810427877 | AB7: 0.4132001261 | AC7: 7.577973139 | AD7: 0.7387040493 | AE7: 0.1723877566 | AF7: 0.4143141993 | AG7: 27.78083641 | AH7: =SUM(AH10:AH15,AH17) -> 22.00357766 | AI7: 20.88943317 | AJ7: 108.2175295 | AK7: 4.050835495 | AL7: 1.540319501 | AM7: 0.5097819094 | AN7: 0.06617963497 | AO7: 0.1222211247 | AP7: 0.8368940577 | AQ7: 0.01406321375 | AR7: 0.3255504107 | AS7: 2.46548978 | AT7: 0.3947518536 | AU7: 0.1988372391 | AV7: 0.5064392122 | AW7: 2.003462548 | AX7: 0.6808173669 | AY7: 4.757593406 | AZ7: 2.989960639 | BA7: 1.168724729 | BB7: 0.02408540593 | BC7: 59.42413836 | BD7: 0.02799679433 | BE7: 0.05673584772 | BF7: 1.704256059 | BG7: 0.008690269035 | BH7: 0.9378627111 | BI7: 3.348626734 | BJ7: 0.0761835736 | BK7: 19.30573723 | BL7: 15.33256857 | BM7: 1.361233887 | BN7: =SUM(BN10:BN15,BN17) -> 1.411970856 | BO7: 1.092067458 | BP7: 0.5602698684 | BQ7: 0.006401263727 | BR7: 1.846938721 | BS7: 0.08149067222 | BT7: 0.4288322146 | BU7: 0.0585118377 | BV7: 3.592862708 | BW7: 0.1300185 | BX7: 26.14662675 | BY7: 339.4925788 | BZ7: 0.1044538602 | CA7: 2.066203733 | CB7: 2.066316187 | CC7: 0.006199708146 | CD7: 0.2294701143 | CE7: 1.296197912 | CF7: 0.07792526872 | CG7: 0.2181496877 | CH7: 12.34182501 | CI7: 0.453311387 | CJ7: 35.72281513 | CK7: 0.1673386612 | CL7: 2.065337374 | CM7: 0.02603543924 | CN7: 1.663198573 | CO7: 0.09080665261 | CP7: 1.18249257 | CQ7: 0.124227942 | CR7: 3.985166403 | CS7: 0.1687898705 | CT7: =SUM(CT10:CT15,CT17) -> 0.006626429086 | CU7: 0.8364365833 | CV7: 1.257552994 | CW7: 0.05966224326 | CX7: 0.01002975539 | CY7: 0.03560528967 | CZ7: 1.668959548 | DA7: 0.1398142317 | DB7: 12.62365716 | DC7: 0.004229840662 | DD7: 3.750123552 | DE7: 0.01804221226 | DF7: 31.90978553 | DG7: 0.01563080179 | DH7: 8.807885286 | DI7: 0.007170589986 | DJ7: 0.08072033325 | DK7: 22.16354542 | DL7: 3.203562794 | DM7: 0.04347755322 | DN7: 11.93297724 | DO7: 2.020578026 | DP7: 0.7751903792 | DQ7: 33.10551558 | DR7: 253.7723709 | DS7: 0.2646368571 | DT7: 0.4449208992 | DU7: 0.1750948196 | DV7: 6.942848629 | DW7: 0.08450653121 | DX7: 0.04123899497 | DY7: 49.79975928 | DZ7: =SUM(DZ10:DZ15,DZ17) -> 0.1767348735 | EA7: 2.858186437 | EB7: 14.82829845 | EC7: 4.13173669 | ED7: 1.453731035 | EE7: 0.7920116975 | EF7: 0.7162583641 | EG7: 0.2563867654 | EH7: 0.006453025488 | EI7: 0.9280792953 | EJ7: 4.144631267 | EK7: 6.322248856 | EL7: 0.5587106058 | EM7: 12.63682023 | EN7: 8.429182033 | EO7: 0.5301679477 | EP7: 0.1185133522 | EQ7: 13.32161591 | ER7: 0.3599735856 | ES7: 17.49365848 | ET7: 0.2380807607 | EU7: 13.91616285 | EV7: 0.0403983914 | EW7: 0.02977378075 | EX7: 0.167672745 | EY7: 0.07003749229 | EZ7: 0.253081826 | FA7: 0.5178431466 | FB7: 0.00559358401 | FC7: 0.9376508053 | FD7: 24.84511864 | FE7: 7.884554772 | FF7: =SUM(FF10:FF15,FF17) -> 7.116630252 | FG7: 0.6370292259 | FH7: 0.4203141584 | FI7: 0.2010296721 | FJ7: 0.005886880599 | FK7: 0.02967020304 | FL7: 0.4833839317 | FM7: 1.223667994 | FN7: 42.16596021 | FO7: 27.3395775 | FP7: 0.7860922263 | FQ7: 0.1294589131 | FR7: 6.430057995 | FS7: 0.7675777357 | FT7: 0.006287079803 | FU7: 1.232067305 | FV7: 3.191348554 | FW7: 0.03978897262 | FX7: 0.009717707939 | FY7: 5.311912053 | FZ7: 13.17440065 | GA7: 12.81289595 | GB7: 7.033834772
A8: % of total deaths | B8: =B7/B6 -> 0.02951715646 | C8: 0.1215453923 | D8: 0.002246281338 | E8: 0.002191189923 | F8: 0.01120696588 | G8: 0.00162405342 | H8: 0.004502988273 | I8: 0.002240076033 | J8: 0.001358125751 | K8: 0.004515221995 | L8: 0.1296491114 | M8: 0.004845345242 | N8: 0.1360087717 | O8: 0.1809006546 | P8: 0.02736232866 | Q8: 0.001904389381 | R8: 0.002255743138 | S8: 0.003407847619 | T8: 0.001266435562 | U8: 0.0009519265982 | V8: 0.007506580422 | W8: 0.01839832384 | X8: 0.009238268036 | Y8: 0.007512458413 | Z8: 0.003195340217 | AA8: 0.01234848275 | AB8: 0.02622890987 | AC8: 0.1264718343 | AD8: 0.002883050862 | AE8: 0.00254365262 | AF8: 0.003779834121 | AG8: 0.002678271982 | AH8: =AH7/AH6 -> 0.07951709161 | AI8: 0.08897935627 | AJ8: 0.1460565414 | AK8: 0.1054999431 | AL8: 0.005453765011 | AM8: 0.08737379033 | AN8: 0.02246360904 | AO8: 0.004959780698 | AP8: 0.008497975642 | AQ8: 0.001702279634 | AR8: 0.003021874353 | AS8: 0.002678259638 | AT8: 0.05319102081 | AU8: 0.003846663039 | AV8: 0.007712064567 | AW8: 0.01052877748 | AX8: 0.008088736797 | AY8: 0.007819319561 | AZ8: 0.0872759434 | BA8: 0.002792672823 | BB8: 0.001577448025 | BC8: 0.08487843091 | BD8: 0.0005245889008 | BE8: 0.008779539917 | BF8: 0.003056170253 | BG8: 0.0135131669 | BH8: 0.06250655743 | BI8: 0.005578631329 | BJ8: 0.001341172042 | BK8: 0.08723342581 | BL8: 0.1307931437 | BM8: 0.08725117383 | BN8: =BN7/BN6 -> 0.08559564656 | BO8: 0.09436315984 | BP8: 0.004627166667 | BQ8: 0.008230503984 | BR8: 0.02304381 | BS8: 0.01243069952 | BT8: 0.01087404616 | BU8: 0.001135115899 | BV8: 0.0389465931 | BW8: 0.001022977851 | BX8: 0.0140343257 | BY8: 0.03547978729 | BZ8: 0.003408207757 | CA8: 0.005562304125 | CB8: 0.01089607315 | CC8: 0.002758461981 | CD8: 0.005155500307 | CE8: 0.002025939265 | CF8: 0.003950205548 | CG8: 0.005989080529 | CH8: 0.009416030744 | CI8: 0.003064470061 | CJ8: 0.1257321773 | CK8: 0.004593632331 | CL8: 0.02220264349 | CM8: 0.03287219909 | CN8: 0.005918208616 | CO8: 0.008237763132 | CP8: 0.02503091999 | CQ8: 0.003242913373 | CR8: 0.1088961278 | CS8: 0.005012796702 | CT8: =CT7/CT6 -> 0.004988325464 | CU8: 0.005831879852 | CV8: 0.04207881495 | CW8: 0.001459909355 | CX8: 0.002567132278 | CY8: 0.00128160491 | CZ8: 0.009170364302 | DA8: 0.002988161453 | DB8: 0.08089148782 | DC8: 0.003309899805 | DD8: 0.005744144135 | DE8: 0.0008933830271 | DF8: 0.1732601419 | DG8: 0.004489142136 | DH8: 0.02048078836 | DI8: 0.001100544102 | DJ8: 0.004319233523 | DK8: 0.08618069267 | DL8: 0.09885423307 | DM8: 0.004338230031 | DN8: 0.09703473754 | DO8: 0.01311209248 | DP8: 0.04093290449 | DQ8: 0.1660990413 | DR8: 0.1192749639 | DS8: 0.009072596596 | DT8: 0.002984268805 | DU8: 0.004279543475 | DV8: 0.037954118 | DW8: 0.002760607182 | DX8: 0.003672144867 | DY8: 0.03549296272 | DZ8: =DZ7/DZ6 -> 0.008678016448 | EA8: 0.01656932927 | EB8: 0.02237826706 | EC8: 0.07351336561 | ED8: 0.003706884786 | EE8: 0.003555088459 | EF8: 0.006679547979 | EG8: 0.007051397187 | EH8: 0.001630307403 | EI8: 0.003607152761 | EJ8: 0.002216334417 | EK8: 0.09563446116 | EL8: 0.004921109509 | EM8: 0.04482725623 | EN8: 0.08958334107 | EO8: 0.01862262087 | EP8: 0.04276734547 | EQ8: 0.148872448 | ER8: 0.008539659577 | ES8: 0.1047382005 | ET8: 0.002217992829 | EU8: 0.1146842064 | EV8: 0.03552143935 | EW8: 0.007453482269 | EX8: 0.003283938213 | EY8: 0.003507818625 | EZ8: 0.002776142555 | FA8: 0.03984780394 | FB8: 0.00712865343 | FC8: 0.006234320564 | FD8: 0.1429787298 | FE8: 0.1218972193 | FF8: =FF7/FF6 -> 0.01320192447 | FG8: 0.01380778988 | FH8: 0.01061885866 | FI8: 0.02795350157 | FJ8: 0.00932081944 | FK8: 0.002448441166 | FL8: 0.00670055935 | FM8: 0.002687065239 | FN8: 0.103162292 | FO8: 0.09218228044 | FP8: 0.001236571981 | FQ8: 0.003954251278 | FR8: 0.002294683569 | FS8: 0.004477139241 | FT8: 0.007046905887 | FU8: 0.006808661557 | FV8: 0.005814757543 | FW8: 0.03023310764 | FX8: 0.01017144391 | FY8: 0.03050683727 | FZ8: 0.02505554191 | GA8: 0.1026534732 | GB8: 0.05421643771
A10: Diarrhoeal diseases | B10: 4.703032689 | C10: 13.27369647 | D10: 0.00461160155 | E10: 0.00260201192 | F10: 0.1561525773 | G10: 0.005144503907 | H10: 0.0001137314632 | I10: 0.02300529025 | J10: 0.01077956863 | K10: 0.1076850136 | L10: 6.368909169 | M10: 0.03200262019 | N10: 5.985489816 | O10: 8.688521665 | P10: 19.0842772 | Q10: 0.009125307451 | R10: 0.0005524447831 | S10: 0.0002553073518 | T10: 0.002768526139 | U10: 0.004845725709 | V10: 0.003310285536 | W10: 0.5540210798 | X10: 2.097925491 | Y10: 0.0004656170826 | Z10: 0.0001857938403 | AA10: 0.03082992988 | AB10: 0.2571965804 | AC10: 3.577472663 | AD10: 0.1331110188 | AE10: 0.01158068957 | AF10: 0.0362492947 | AG10: 3.593085509 | AH10: 10.27342615 | AI10: 9.865826525 | AJ10: 42.62126577 | AK10: 1.867269956 | AL10: 0.3152891088 | AM10: 0.3860934546 | AN10: 0.02190294379 | AO10: 0.04123476628 | AP10: 0.1166224354 | AQ10: 0.0032655443 | AR10: 0.01897041993 | AS10: 0.4804214429 | AT10: 0.2811796969 | AU10: 0.01704336916 | AV10: 0.2242187792 | AW10: 0.749163601 | AX10: 0.09133886385 | AY10: 1.853775113 | AZ10: 2.177913184 | BA10: 0.07035921998 | BB10: 8.228879922e-05 | BC10: 42.92395415 | BD10: 0.001990007576 | BE10: 0.02532747962 | BF10: 0.171748863 | BG10: 0.003528578819 | BH10: 0.3875861362 | BI10: 0.1296994438 | BJ10: 0.007049312353 | BK10: 4.78643308 | BL10: 5.143884112 | BM10: 0.5550899706 | BN10: 0.6093104534 | BO10: 0.2499529874 | BP10: 0.004149107348 | BQ10: 0.0003423820121 | BR10: 0.9629007362 | BS10: 0.02662553938 | BT10: 0.3186184451 | BU10: 0.004718274274 | BV10: 2.436327383 | BW10: 0.02337895021 | BX10: 18.19265021 | BY10: 243.5512915 | BZ10: 0.0035043057 | CA10: 0.7844394131 | CB10: 1.109034912 | CC10: 0.0003442571019 | CD10: 0.02020700925 | CE10: 0.08151661639 | CF10: 0.01665805027 | CG10: 0.05788887352 | CH10: 0.2128789607 | CI10: 0.06819865287 | CJ10: 24.19159678 | CK10: 0.04597256271 | CL10: 0.9060428406 | CM10: 0.01785186007 | CN10: 0.06364062889 | CO10: 0.0005008450828 | CP10: 0.6118451192 | CQ10: 0.04719868871 | CR10: 1.835146808 | CS10: 0.03611192584 | CT10: 0.001102396473 | CU10: 0.2451644069 | CV10: 0.9441256151 | CW10: 0.002341586111 | CX10: 0.0002792115399 | CY10: 0.0003925934712 | CZ10: 0.661432598 | DA10: 0.003889732259 | DB10: 7.071366239 | DC10: 0.001293835585 | DD10: 1.279220463 | DE10: 0.00149990738 | DF10: 12.06890924 | DG10: 0.0001432653314 | DH10: 6.035272119 | DI10: 0.0001547149679 | DJ10: 0.03189484241 | DK10: 7.537226276 | DL10: 1.574864039 | DM10: 0.007295250796 | DN10: 4.750024462 | DO10: 0.1266264943 | DP10: 0.4259684129 | DQ10: 13.62824328 | DR10: 119.8791763 | DS10: 0.1263424961 | DT10: 0.04092637047 | DU10: 0.01111843422 | DV10: 5.711393968 | DW10: 0.006793476163 | DX10: 0.00192913578 | DY10: 37.38182708 | DZ10: 0.07183141809 | EA10: 0.3752524187 | EB10: 4.113029656 | EC10: 1.266584916 | ED10: 0.03466819993 | EE10: 0.2013838209 | EF10: 0.01584432395 | EG10: 0.09293658285 | EH10: 0.0002069406145 | EI10: 0.07134115897 | EJ10: 0.1497067698 | EK10: 2.164184918 | EL10: 0.02863791331 | EM10: 6.636546525 | EN10: 3.508620643 | EO10: 0.003716815308 | EP10: 0.03580464464 | EQ10: 5.595860822 | ER10: 0.123277013 | ES10: 11.75618213 | ET10: 0.06490387877 | EU10: 7.510499864 | EV10: 0.02069257139 | EW10: 0.01077752238 | EX10: 0.002425287087 | EY10: 0.0004392989181 | EZ10: 0.02116808794 | FA10: 0.3492171118 | FB10: 0.0001533102089 | FC10: 0.6685946329 | FD10: 13.88940328 | FE10: 2.985416168 | FF10: 1.89503928 | FG10: 0.2265025162 | FH10: 0.2239548073 | FI10: 0.1212087664 | FJ10: 0.001492531429 | FK10: 0.00192014422 | FL10: 0.11446622 | FM10: 0.2303225828 | FN10: 20.04326324 | FO10: 12.41360963 | FP10: 0.1164225265 | FQ10: 0.01236051433 | FR10: 0.7456814157 | FS10: 0.1372548684 | FT10: 0.001444601776 | FU10: 0.4168462637 | FV10: 0.8982638325 | FW10: 0.02725065031 | FX10: 0.002786171259 | FY10: 2.77906979 | FZ10: 7.24300016 | GA10: 5.329631005 | GB10: 3.472470362
A11: Soil-transmitted helminth infections | B11: 0.04978295898 | C11: 0.07691877747 | D11: 2.476706356e-05 | E11: 0 | F11: 0.0001554343551 | G11: 2.56533958e-05 | H11: 0 | I11: 0 | J11: 0 | K11: 0.0001552745551 | L11: 0.04811531448 | M11: 0 | N11: 0.07758052826 | O11: 0.07001587677 | P11: 0.05535213089 | Q11: 0 | R11: 0 | S11: 0 | T11: 0 | U11: 0 | V11: 9.46944654e-05 | W11: 0.005511627197 | X11: 0.01893885422 | Y11: 0 | Z11: 0 | AA11: 0.0004009543657 | AB11: 0.0001827510446 | AC11: 0.04874901962 | AD11: 0 | AE11: 0 | AF11: 0 | AG11: 0.03533232117 | AH11: 0.2793123169 | AI11: 0.2605428467 | AJ11: 0.7530371704 | AK11: 0.0120690136 | AL11: 0.01181574726 | AM11: 0.001181835413 | AN11: 3.953621257e-06 | AO11: 0.0005570551157 | AP11: 0.0009152016044 | AQ11: 0 | AR11: 0 | AS11: 0 | AT11: 0.0003015280068 | AU11: 0 | AV11: 0.0004432799518 | AW11: 0.001683906674 | AX11: 0.002212353945 | AY11: 0.004288362503 | AZ11: 0.00416940546 | BA11: 0 | BB11: 0 | BC11: 0.1945573273 | BD11: 0 | BE11: 0.0002053430974 | BF11: 0 | BG11: 6.764996797e-05 | BH11: 0.003366567135 | BI11: 0 | BJ11: 0 | BK11: 0.03875923538 | BL11: 0.1363647308 | BM11: 0.002232815981 | BN11: 0.008215594292 | BO11: 0.005778538704 | BP11: 0 | BQ11: 1.245247433e-06 | BR11: 0.01311927509 | BS11: 0.0001201325282 | BT11: 0.003240314245 | BU11: 0 | BV11: 0.0144237442 | BW11: 0 | BX11: 0.1790218964 | BY11: 0.529223999 | BZ11: 0 | CA11: 0.001002571702 | CB11: 0.0007563411593 | CC11: 0 | CD11: 0 | CE11: 0 | CF11: 0.000353192836 | CG11: 0.0002997927368 | CH11: 0 | CI11: 0.0002362575829 | CJ11: 0.03282614899 | CK11: 9.391626716e-05 | CL11: 0.003938967466 | CM11: 9.071892127e-06 | CN11: 0 | CO11: 0 | CP11: 0.09159983063 | CQ11: 8.694508113e-06 | CR11: 0.02549203682 | CS11: 0.0002097298205 | CT11: 7.465787348e-07 | CU11: 0.002032531023 | CV11: 0.00198601377 | CW11: 0 | CX11: 0 | CY11: 0 | CZ11: 0.001280478716 | DA11: 1.744295936e-06 | DB11: 0.08374614716 | DC11: 9.064325714e-07 | DD11: 0.007771855831 | DE11: 8.990318514e-06 | DF11: 0.02998191643 | DG11: 0 | DH11: 0.100486969 | DI11: 4.161174875e-06 | DJ11: 0 | DK11: 0.1264932632 | DL11: 0.002265039444 | DM11: 4.702541977e-06 | DN11: 0.0153556366 | DO11: 0.004157108307 | DP11: 0.0002636260986 | DQ11: 0.0659040451 | DR11: 1.721178589 | DS11: 0.001710010886 | DT11: 0 | DU11: 0 | DV11: 0.01054772758 | DW11: 0 | DX11: 0 | DY11: 0.07005651093 | DZ11: 0.0007818974257 | EA11: 0.004890769482 | EB11: 0.04762301254 | EC11: 0.02806064224 | ED11: 0 | EE11: 0.002347618103 | EF11: 0 | EG11: 0.001250814676 | EH11: 0 | EI11: 1.554312371e-05 | EJ11: 0 | EK11: 0.01366881752 | EL11: 0 | EM11: 0.05664221191 | EN11: 0.01368694687 | EO11: 0 | EP11: 0.0002751376927 | EQ11: 0.1126880951 | ER11: 0.0006881260872 | ES11: 0.04840494919 | ET11: 2.464234596e-06 | EU11: 0.03358909988 | EV11: 0.0002032733709 | EW11: 6.401527673e-05 | EX11: 0 | EY11: 0 | EZ11: 0 | FA11: 0.001677551389 | FB11: 0 | FC11: 0.0008232411742 | FD11: 0.08216494751 | FE11: 0.03493327713 | FF11: 0.009599133492 | FG11: 0.0007649697065 | FH11: 0.000327239275 | FI11: 0.002568143368 | FJ11: 6.037217565e-06 | FK11: 0 | FL11: 0.0003152241111 | FM11: 0.001205763817 | FN11: 0.1917016296 | FO11: 0.1061676559 | FP11: 0 | FQ11: 0 | FR11: 0 | FS11: 0.0002403128445 | FT11: 4.743507598e-07 | FU11: 0.008960618019 | FV11: 0.02586364365 | FW11: 0.0003275359571 | FX11: 2.376764268e-05 | FY11: 0.00763677454 | FZ11: 0.004888043404 | GA11: 0.03514286804 | GB11: 0.01695739937
A12: Respiratory infections | B12: 2.289337776 | C12: 3.541553497 | D12: 0.0537247923 | E12: 0.03047478774 | F12: 3.516528816 | G12: 0.04059363758 | H12: 0.002800092943 | I12: 0.3342898877 | J12: 0.0987550507 | K12: 0.1733316779 | L12: 1.445036002 | M12: 0.5043401755 | N12: 1.733803974 | O12: 2.324260065 | P12: 4.018495462 | Q12: 0.1930821075 | R12: 0.005745282092 | S12: 0.007911575328 | T12: 0.04590846123 | U12: 0.1081390424 | V12: 0.0115905188 | W12: 0.7006029784 | X12: 9.951977714 | Y12: 0.02371840868 | Z12: 0.005035924158 | AA12: 0.02659511864 | AB12: 0.1405777355 | AC12: 0.7915473958 | AD12: 0.6055930305 | AE12: 0.160807067 | AF12: 0.3780649046 | AG12: 24.08291249 | AH12: 4.443068456 | AI12: 3.602643915 | AJ12: 11.13526601 | AK12: 0.4159087074 | AL12: 1.157367574 | AM12: 0.1005527062 | AN12: 0.04307231048 | AO12: 0.08026057587 | AP12: 0.7191108568 | AQ12: 0.01079766945 | AR12: 0.3065799908 | AS12: 1.985068337 | AT12: 0.08531091906 | AU12: 0.1817938699 | AV12: 0.2670695195 | AW12: 1.235062738 | AX12: 0.5778330223 | AY12: 2.813446466 | AZ12: 0.5331461922 | BA12: 1.098365509 | BB12: 0.02400311713 | BC12: 9.96275531 | BD12: 0.02600678675 | BE12: 0.03078231673 | BF12: 1.532507196 | BG12: 0.00494412286 | BH12: 0.1653705759 | BI12: 3.218927291 | BJ12: 0.06912631472 | BK12: 3.283824534 | BL12: 2.083211477 | BM12: 0.2412758611 | BN12: 0.2558524442 | BO12: 0.1743790024 | BP12: 0.5561207611 | BQ12: 0.006033342749 | BR12: 0.8003715572 | BS12: 0.02857200601 | BT12: 0.09143510367 | BU12: 0.05379356342 | BV12: 0.8371770945 | BW12: 0.1066395497 | BX12: 5.938510996 | BY12: 74.26190336 | BZ12: 0.1009495545 | CA12: 1.275845253 | CB12: 0.9310488619 | CC12: 0.005855451044 | CD12: 0.2092631051 | CE12: 1.214681296 | CF12: 0.06024386617 | CG12: 0.158547062 | CH12: 12.12894605 | CI12: 0.3843975601 | CJ12: 2.895643207 | CK12: 0.1211259207 | CL12: 1.032286482 | CM12: 0.006980348577 | CN12: 1.599557944 | CO12: 0.09030580753 | CP12: 0.4343379909 | CQ12: 0.07697057611 | CR12: 0.5052454511 | CS12: 0.1313253546 | CT12: 0.005507342023 | CU12: 0.5889289241 | CV12: 0.2800098856 | CW12: 0.05732065715 | CX12: 0.00975054385 | CY12: 0.0352126962 | CZ12: 0.9855659318 | DA12: 0.1359194923 | DB12: 2.049865028 | DC12: 0.002921540954 | DD12: 2.403886155 | DE12: 0.01649515808 | DF12: 2.201774377 | DG12: 0.01548753646 | DH12: 2.423563289 | DI12: 0.007010597541 | DJ12: 0.04863362087 | DK12: 2.604509253 | DL12: 0.5399168283 | DM12: 0.03605059922 | DN12: 1.325212516 | DO12: 1.888011561 | DP12: 0.2253977974 | DQ12: 3.98542718 | DR12: 42.82045105 | DS12: 0.1186636297 | DT12: 0.4039945287 | DU12: 0.1639763853 | DV12: 1.193315486 | DW12: 0.07771305505 | DX12: 0.03930985919 | DY12: 11.07263921 | DZ12: 0.1002350561 | EA12: 2.448505614 | EB12: 10.42139341 | EC12: 0.5466600022 | ED12: 1.419062835 | EE12: 0.5841661343 | EF12: 0.7004140401 | EG12: 0.1578926336 | EH12: 0.006246084873 | EI12: 0.8564120672 | EJ12: 3.993837442 | EK12: 0.8388901641 | EL12: 0.5300726925 | EM12: 2.558530766 | EN12: 1.327386085 | EO12: 0.5264511324 | EP12: 0.02363550157 | EQ12: 1.382354472 | ER12: 0.2327533127 | ES12: 3.295484996 | ET12: 0.1730965485 | EU12: 1.89153577 | EV12: 0.01718338927 | EW12: 0.01842017061 | EX12: 0.1652474579 | EY12: 0.06959819337 | EZ12: 0.2319137381 | FA12: 0.1380627162 | FB12: 0.005440273801 | FC12: 0.2607848904 | FD12: 4.061520224 | FE12: 1.016777351 | FF12: 5.19037352 | FG12: 0.4011438481 | FH12: 0.1950781049 | FI12: 0.07526301392 | FJ12: 0.004359963617 | FK12: 0.02775005882 | FL12: 0.3676097148 | FM12: 0.9885487451 | FN12: 5.468651994 | FO12: 4.207079834 | FP12: 0.6667205099 | FQ12: 0.1170983988 | FR12: 5.68437658 | FS12: 0.6284741409 | FT12: 0.004825785686 | FU12: 0.7249070418 | FV12: 2.260104587 | FW12: 0.01006826633 | FX12: 0.006812579399 | FY12: 1.614376921 | FZ12: 5.382988207 | GA12: 1.571201043 | GB12: 1.659520234
A13: Malnutrition (only PEM) | B13: 0.07153703756 | C13: 0.7145869183 | D13: 0.0002333790629 | E13: 0 | F13: 0.002833103056 | G13: 3.198262624e-06 | H13: 0 | I13: 0 | J13: 0 | K13: 0.001072548385 | L13: 0.4658768083 | M13: 0 | N13: 0.4309631705 | O13: 0.4977870531 | P13: 0.2447517048 | Q13: 6.283994953e-05 | R13: 0 | S13: 0 | T13: 0 | U13: 5.094323415e-05 | V13: 0.0001369044192 | W13: 0.0477317581 | X13: 0.05775904706 | Y13: 0 | Z13: 0 | AA13: 0.0002782758863 | AB13: 0.007401324706 | AC13: 0.1465624509 | AD13: 0 | AE13: 0 | AF13: 0 | AG13: 0.05132982877 | AH13: 0.6217286951 | AI13: 0.4570991958 | AJ13: 3.675217791 | AK13: 0.1047993975 | AL13: 0.03930606452 | AM13: 0.01638891316 | AN13: 0.0004133113201 | AO13: 0.0001687274804 | AP13: 0.0002455638724 | AQ13: 0 | AR13: 0 | AS13: 0 | AT13: 0.01334476268 | AU13: 0 | AV13: 0.01019015307 | AW13: 0.007362444236 | AX13: 0.008722368354 | AY13: 0.05781876609 | AZ13: 0.07547309566 | BA13: 0 | BB13: 0 | BC13: 1.594813812 | BD13: 0 | BE13: 0.000420708269 | BF13: 0 | BG13: 0.0001499173878 | BH13: 0.01647679878 | BI13: 0 | BJ13: 7.946528486e-06 | BK13: 0.4877747296 | BL13: 0.2525346421 | BM13: 0.04728695596 | BN13: 0.02291478636 | BO13: 0.01653313549 | BP13: 0 | BQ13: 2.429371843e-05 | BR13: 0.06787509858 | BS13: 0.001470311806 | BT13: 0.007926425491 | BU13: 0 | BV13: 0.1300344774 | BW13: 0 | BX13: 0.05470652621 | BY13: 2.007353343 | BZ13: 0 | CA13: 0.004916495006 | CB13: 0.01921324978 | CC13: 0 | CD13: 0 | CE13: 0 | CF13: 0.0006701594464 | CG13: 0.001040055766 | CH13: 0 | CI13: 0.0004789164567 | CJ13: 0.5658979521 | CK13: 0.0001462615509 | CL13: 0.0132138286 | CM13: 0.001194158692 | CN13: 0 | CO13: 0 | CP13: 0.01769191716 | CQ13: 4.998263995e-05 | CR13: 0.05608967259 | CS13: 0.0003488709973 | CT13: 1.594401041e-05 | CU13: 0.0003107212835 | CV13: 0.03143147991 | CW13: 0 | CX13: 0 | CY13: 0 | CZ13: 0.008684202012 | DA13: 3.262785306e-06 | DB13: 0.370927086 | DC13: 1.355769148e-05 | DD13: 0.059245079 | DE13: 3.815648373e-05 | DF13: 0.6273082941 | DG13: 0 | DH13: 0.05537792633 | DI13: 1.116301489e-06 | DJ13: 0.0001918699723 | DK13: 0.3015900259 | DL13: 0.08175309647 | DM13: 0.0001270006689 | DN13: 0.3527830969 | DO13: 0.0001997704806 | DP13: 0.02798061299 | DQ13: 0.9454149597 | DR13: 6.040961935 | DS13: 0.009970720558 | DT13: 0 | DU13: 0 | DV13: 0.02520731693 | DW13: 0 | DX13: 0 | DY13: 0.3951713586 | DZ13: 0.003886501837 | EA13: 0.02397263459 | EB13: 0.1714524407 | EC13: 0.0239960718 | ED13: 0 | EE13: 0.004114124131 | EF13: 0 | EG13: 0.004306734286 | EH13: 0 | EI13: 0.0003105259973 | EJ13: 0.001087055669 | EK13: 0.1281225363 | EL13: 0 | EM13: 0.1627519912 | EN13: 0.1563316456 | EO13: 0 | EP13: 0.0009384796531 | EQ13: 0.3040014242 | ER13: 0.003255133835 | ES13: 0.5912441842 | ET13: 7.786916605e-05 | EU13: 0.196330669 | EV13: 0.001816007699 | EW13: 0.0003655104806 | EX13: 0 | EY13: 0 | EZ13: 0 | FA13: 0.02373607277 | FB13: 0 | FC13: 0.006131617375 | FD13: 0.6317348846 | FE13: 0.1464308168 | FF13: 0.0002343954536 | FG13: 0.008617891898 | FH13: 0.0009540069641 | FI13: 0.001989748488 | FJ13: 2.834833527e-05 | FK13: 0 | FL13: 0.00099277279 | FM13: 0.003590902019 | FN13: 1.106552987 | FO13: 0.573389687 | FP13: 0.00294918987 | FQ13: 0 | FR13: 0 | FS13: 0.001344605081 | FT13: 1.621799042e-05 | FU13: 0.01308546155 | FV13: 4.191881039e-05 | FW13: 0.0005918864793 | FX13: 9.518963883e-05 | FY13: 0.02778856446 | FZ13: 0.4087839179 | GA13: 0.427730404 | GB13: 0.4756050728
A14: Trachoma | B14: 0 | C14: 0 | D14: 0 | E14: 0 | F14: 0 | G14: 0 | H14: 0 | I14: 0 | J14: 0 | K14: 0 | L14: 0 | M14: 0 | N14: 0 | O14: 0 | P14: 0 | Q14: 0.0003784315884 | R14: 0 | S14: 0 | T14: 0 | U14: 0 | V14: 0 | W14: 0 | X14: 0 | Y14: 0 | Z14: 0 | AA14: 0 | AB14: 0 | AC14: 0 | AD14: 0 | AE14: 0 | AF14: 0 | AG14: 0 | AH14: 0 | AI14: 0 | AJ14: 0 | AK14: 0 | AL14: 0 | AM14: 0 | AN14: 0 | AO14: 0 | AP14: 0 | AQ14: 0 | AR14: 0 | AS14: 0 | AT14: 0 | AU14: 0 | AV14: 0 | AW14: 0 | AX14: 0 | AY14: 0 | AZ14: 0 | BA14: 0 | BB14: 0 | BC14: 0 | BD14: 0 | BE14: 0 | BF14: 0 | BG14: 0 | BH14: 0 | BI14: 0 | BJ14: 0 | BK14: 0 | BL14: 0 | BM14: 0 | BN14: 0 | BO14: 0 | BP14: 0 | BQ14: 0 | BR14: 0 | BS14: 0 | BT14: 0 | BU14: 0 | BV14: 0 | BW14: 0 | BX14: 0 | BY14: 0 | BZ14: 0 | CA14: 0 | CB14: 0 | CC14: 0 | CD14: 0 | CE14: 0 | CF14: 0 | CG14: 0 | CH14: 0 | CI14: 0 | CJ14: 0 | CK14: 0 | CL14: 0 | CM14: 0 | CN14: 0 | CO14: 0 | CP14: 0 | CQ14: 0 | CR14: 0 | CS14: 0 | CT14: 0 | CU14: 0 | CV14: 0 | CW14: 0 | CX14: 0 | CY14: 0 | CZ14: 0 | DA14: 0 | DB14: 0 | DC14: 0 | DD14: 0 | DE14: 0 | DF14: 0 | DG14: 0 | DH14: 0 | DI14: 0 | DJ14: 0 | DK14: 0 | DL14: 0 | DM14: 0 | DN14: 0 | DO14: 0 | DP14: 0 | DQ14: 0 | DR14: 0 | DS14: 0 | DT14: 0 | DU14: 0 | DV14: 0 | DW14: 0 | DX14: 0 | DY14: 0 | DZ14: 0 | EA14: 0 | EB14: 0.000318272233 | EC14: 0 | ED14: 0 | EE14: 0 | EF14: 0 | EG14: 0 | EH14: 0 | EI14: 0 | EJ14: 0 | EK14: 0 | EL14: 0 | EM14: 0 | EN14: 0 | EO14: 0 | EP14: 0 | EQ14: 0 | ER14: 0 | ES14: 0 | ET14: 0 | EU14: 0 | EV14: 0 | EW14: 0 | EX14: 0 | EY14: 0 | EZ14: 0 | FA14: 0 | FB14: 0 | FC14: 0 | FD14: 0 | FE14: 0 | FF14: 0 | FG14: 0 | FH14: 0 | FI14: 0 | FJ14: 0 | FK14: 0 | FL14: 0 | FM14: 0 | FN14: 0 | FO14: 0 | FP14: 0 | FQ14: 0 | FR14: 0 | FS14: 0 | FT14: 0 | FU14: 0 | FV14: 0 | FW14: 0 | FX14: 0 | FY14: 0 | FZ14: 0 | GA14: 0 | GB14: 0
A15: Schistosomiasis | B15: 0 | C15: 0.2953420742 | D15: 0 | E15: 0 | F15: 0 | G15: 0 | H15: 0 | I15: 0 | J15: 0 | K15: 0 | L15: 0.1195674381 | M15: 0 | N15: 0.1859467898 | O15: 0.2933457867 | P15: 0 | Q15: 0 | R15: 0 | S15: 0 | T15: 0 | U15: 0 | V15: 0 | W15: 0 | X15: 0.04896881842 | Y15: 0 | Z15: 0 | AA15: 0 | AB15: 0.004002172282 | AC15: 0.07719702896 | AD15: 0 | AE15: 0 | AF15: 0 | AG15: 0.01572613049 | AH15: 0.5836777806 | AI15: 0.319449102 | AJ15: 0.630637297 | AK15: 0.03159469496 | AL15: 0 | AM15: 0 | AN15: 0 | AO15: 0 | AP15: 0 | AQ15: 0 | AR15: 0 | AS15: 0 | AT15: 0.007459947706 | AU15: 0 | AV15: 0.002927480445 | AW15: 0.01018985809 | AX15: 0 | AY15: 0.02826469944 | AZ15: 0.06808375872 | BA15: 0 | BB15: 0 | BC15: 0.9463673319 | BD15: 0 | BE15: 0 | BF15: 0 | BG15: 0 | BH15: 0.009400340607 | BI15: 0 | BJ15: 0 | BK15: 0.3327981886 | BL15: 0.2022376744 | BM15: 0.01546287675 | BN15: 0.01711809916 | BO15: 0.009048915746 | BP15: 0 | BQ15: 0 | BR15: 0 | BS15: 0 | BT15: 0 | BU15: 0 | BV15: 0 | BW15: 0 | BX15: 0.004912174634 | BY15: 0 | BZ15: 0 | CA15: 0 | CB15: 0.00626282131 | CC15: 0 | CD15: 0 | CE15: 0 | CF15: 0 | CG15: 0.0003739036658 | CH15: 0 | CI15: 0 | CJ15: 0.2141986939 | CK15: 0 | CL15: 0.0002220916661 | CM15: 0 | CN15: 0 | CO15: 0 | CP15: 0 | CQ15: 0 | CR15: 0.03821758081 | CS15: 0.000793989254 | CT15: 0 | CU15: 0 | CV15: 0 | CW15: 0 | CX15: 0 | CY15: 0 | CZ15: 0.01199633733 | DA15: 0 | DB15: 0.1187785421 | DC15: 0 | DD15: 0 | DE15: 0 | DF15: 0.1954308439 | DG15: 0 | DH15: 0 | DI15: 0 | DJ15: 0 | DK15: 0.2341523859 | DL15: 0.03277966021 | DM15: 0 | DN15: 0.07911080328 | DO15: 0 | DP15: 0.003449062844 | DQ15: 0.2352770955 | DR15: 2.593298403 | DS15: 0 | DT15: 0 | DU15: 0 | DV15: 0 | DW15: 0 | DX15: 0 | DY15: 0 | DZ15: 0 | EA15: 0 | EB15: 0.04692806587 | EC15: 0 | ED15: 0 | EE15: 0 | EF15: 0 | EG15: 0 | EH15: 0 | EI15: 0 | EJ15: 0 | EK15: 0.07293637518 | EL15: 0 | EM15: 0.3659136806 | EN15: 0.09577707421 | EO15: 0 | EP15: 0 | EQ15: 0.1941031889 | ER15: 0 | ES15: 0.1161470353 | ET15: 0 | EU15: 0.1200887952 | EV15: 0.00050314967 | EW15: 0.0001465620045 | EX15: 0 | EY15: 0 | EZ15: 0 | FA15: 0.004356705439 | FB15: 0 | FC15: 0.001316423526 | FD15: 0.239280657 | FE15: 0.1159737224 | FF15: 0 | FG15: 0 | FH15: 0 | FI15: 0 | FJ15: 0 | FK15: 0 | FL15: 0 | FM15: 0 | FN15: 0.3831565614 | FO15: 0.3260015872 | FP15: 0 | FQ15: 0 | FR15: 0 | FS15: 0 | FT15: 0 | FU15: 2.035379871e-05 | FV15: 0 | FW15: 0 | FX15: 0 | FY15: 0.04670009821 | FZ15: 0.1084031024 | GA15: 0.09743867921 | GB15: 0.04593356003
A16: Subtotal drinking-water, sanitation and hygiene | B16: =SUM(B10:B15) -> 7.113690462 | C16: 17.90209774 | D16: 0.05859453997 | E16: 0.03307679966 | F16: 3.675669931 | G16: 0.04576699315 | H16: 0.002913824407 | I16: 0.357295178 | J16: 0.1095346193 | K16: 0.2822445144 | L16: 8.447504731 | M16: 0.5363427957 | N16: 8.413784278 | O16: 11.87393045 | P16: 23.4028765 | Q16: 0.2026486865 | R16: 0.006297726875 | S16: 0.008166882679 | T16: 0.04867698737 | U16: 0.1130357114 | V16: 0.01513240322 | W16: 1.307867444 | X16: 12.17556993 | Y16: 0.02418402577 | Z16: 0.005221717999 | AA16: 0.05810427877 | AB16: 0.4093605639 | AC16: 4.641528559 | AD16: 0.7387040493 | AE16: 0.1723877566 | AF16: 0.4143141993 | AG16: 27.77838628 | AH16: =SUM(AH10:AH15) -> 16.2012134 | AI16: 14.50556158 | AJ16: 58.81542404 | AK16: 2.431641769 | AL16: 1.523778495 | AM16: 0.5042169094 | AN16: 0.06539251922 | AO16: 0.1222211247 | AP16: 0.8368940577 | AQ16: 0.01406321375 | AR16: 0.3255504107 | AS16: 2.46548978 | AT16: 0.3875968544 | AU16: 0.1988372391 | AV16: 0.5048492122 | AW16: 2.003462548 | AX16: 0.6801066085 | AY16: 4.757593406 | AZ16: 2.858785636 | BA16: 1.168724729 | BB16: 0.02408540593 | BC16: 55.62244793 | BD16: 0.02799679433 | BE16: 0.05673584772 | BF16: 1.704256059 | BG16: 0.008690269035 | BH16: 0.5822004186 | BI16: 3.348626734 | BJ16: 0.0761835736 | BK16: 8.929589767 | BL16: 7.818232637 | BM16: 0.8613484803 | BN16: =SUM(BN10:BN15) -> 0.9134113773 | BO16: 0.4556925797 | BP16: 0.5602698684 | BQ16: 0.006401263727 | BR16: 1.844266667 | BS16: 0.05678798972 | BT16: 0.4212202885 | BU16: 0.0585118377 | BV16: 3.417962699 | BW16: 0.1300185 | BX16: 24.3698018 | BY16: 320.3497722 | BZ16: 0.1044538602 | CA16: 2.066203733 | CB16: 2.066316187 | CC16: 0.006199708146 | CD16: 0.2294701143 | CE16: 1.296197912 | CF16: 0.07792526872 | CG16: 0.2181496877 | CH16: 12.34182501 | CI16: 0.453311387 | CJ16: 27.90016279 | CK16: 0.1673386612 | CL16: 1.955704211 | CM16: 0.02603543924 | CN16: 1.663198573 | CO16: 0.09080665261 | CP16: 1.155474858 | CQ16: 0.124227942 | CR16: 2.460191549 | CS16: 0.1687898705 | CT16: =SUM(CT10:CT15) -> 0.006626429086 | CU16: 0.8364365833 | CV16: 1.257552994 | CW16: 0.05966224326 | CX16: 0.01002975539 | CY16: 0.03560528967 | CZ16: 1.668959548 | DA16: 0.1398142317 | DB16: 9.694683043 | DC16: 0.004229840662 | DD16: 3.750123552 | DE16: 0.01804221226 | DF16: 15.12340467 | DG16: 0.01563080179 | DH16: 8.614700303 | DI16: 0.007170589986 | DJ16: 0.08072033325 | DK16: 10.8039712 | DL16: 2.231578664 | DM16: 0.04347755322 | DN16: 6.522486515 | DO16: 2.018994934 | DP16: 0.6830595122 | DQ16: 18.86026656 | DR16: 173.0550662 | DS16: 0.2566868573 | DT16: 0.4449208992 | DU16: 0.1750948196 | DV16: 6.940464499 | DW16: 0.08450653121 | DX16: 0.04123899497 | DY16: 48.91969416 | DZ16: =SUM(DZ10:DZ15) -> 0.1767348735 | EA16: 2.852621437 | EB16: 14.80074485 | EC16: 1.865301632 | ED16: 1.453731035 | EE16: 0.7920116975 | EF16: 0.7162583641 | EG16: 0.2563867654 | EH16: 0.006453025488 | EI16: 0.9280792953 | EJ16: 4.144631267 | EK16: 3.217802811 | EL16: 0.5587106058 | EM16: 9.780385174 | EN16: 5.101802394 | EO16: 0.5301679477 | EP16: 0.06065376355 | EQ16: 7.589008002 | ER16: 0.3599735856 | ES16: 15.80746329 | ET16: 0.2380807607 | EU16: 9.752044198 | EV16: 0.0403983914 | EW16: 0.02977378075 | EX16: 0.167672745 | EY16: 0.07003749229 | EZ16: 0.253081826 | FA16: 0.5170501577 | FB16: 0.00559358401 | FC16: 0.9376508053 | FD16: 18.904104 | FE16: 4.299531335 | FF16: =SUM(FF10:FF15) -> 7.095246329 | FG16: 0.6370292259 | FH16: 0.4203141584 | FI16: 0.2010296721 | FJ16: 0.005886880599 | FK16: 0.02967020304 | FL16: 0.4833839317 | FM16: 1.223667994 | FN16: 27.19332642 | FO16: 17.62624839 | FP16: 0.7860922263 | FQ16: 0.1294589131 | FR16: 6.430057995 | FS16: 0.7673139272 | FT16: 0.006287079803 | FU16: 1.163819739 | FV16: 3.184273982 | FW16: 0.03823833907 | FX16: 0.009717707939 | FY16: 4.475572148 | FZ16: 13.14806343 | GA16: 7.461144 | GB16: 5.670486628
A17: Malaria | B17: 0.2130600281 | C17: 9.531711914 | D17: 0 | E17: 0 | F17: 0 | G17: 0 | H17: 0 | I17: 0 | J17: 0 | K17: 0 | L17: 3.872768066 | M17: 0 | N17: 4.974799316 | O17: 16.96990625 | P17: 0.01108440971 | Q17: 0 | R17: 0 | S17: 0 | T17: 0 | U17: 0 | V17: 0 | W17: 0.002384999752 | X17: 0.02262891006 | Y17: 0 | Z17: 0 | AA17: 0 | AB17: 0.003839562178 | AC17: 2.93644458 | AD17: 0 | AE17: 0 | AF17: 0 | AG17: 0.002450130463 | AH17: 5.802364258 | AI17: 6.383871582 | AJ17: 49.40210547 | AK17: 1.619193726 | AL17: 0.01654100609 | AM17: 0.005565000057 | AN17: 0.0007871157527 | AO17: 0 | AP17: 0 | AQ17: 0 | AR17: 0 | AS17: 0 | AT17: 0.007154999256 | AU17: 0 | AV17: 0.001590000033 | AW17: 0 | AX17: 0.0007107584476 | AY17: 0 | AZ17: 0.1311750031 | BA17: 0 | BB17: 0 | BC17: 3.80169043 | BD17: 0 | BE17: 0 | BF17: 0 | BG17: 0 | BH17: 0.3556622925 | BI17: 0 | BJ17: 0 | BK17: 10.37614746 | BL17: 7.514335938 | BM17: 0.4998854065 | BN17: 0.4985594788 | BO17: 0.6363748779 | BP17: 0 | BQ17: 0 | BR17: 0.002672053814 | BS17: 0.0247026825 | BT17: 0.007611926079 | BU17: 0 | BV17: 0.1749000092 | BW17: 0 | BX17: 1.776824951 | BY17: 19.14280664 | BZ17: 0 | CA17: 0 | CB17: 0 | CC17: 0 | CD17: 0 | CE17: 0 | CF17: 0 | CG17: 0 | CH17: 0 | CI17: 0 | CJ17: 7.822652344 | CK17: 0 | CL17: 0.1096331635 | CM17: 0 | CN17: 0 | CO17: 0 | CP17: 0.02701771164 | CQ17: 0 | CR17: 1.524974854 | CS17: 0 | CT17: 0 | CU17: 0 | CV17: 0 | CW17: 0 | CX17: 0 | CY17: 0 | CZ17: 0 | DA17: 0 | DB17: 2.928974121 | DC17: 0 | DD17: 0 | DE17: 0 | DF17: 16.78638086 | DG17: 0 | DH17: 0.1931849823 | DI17: 0 | DJ17: 0 | DK17: 11.35957422 | DL17: 0.9719841309 | DM17: 0 | DN17: 5.410490723 | DO17: 0.001583091378 | DP17: 0.092130867 | DQ17: 14.24524902 | DR17: 80.71730469 | DS17: 0.007949999809 | DT17: 0 | DU17: 0 | DV17: 0.002384129524 | DW17: 0 | DX17: 0 | DY17: 0.8800651245 | DZ17: 0 | EA17: 0.005565000057 | EB17: 0.02755359268 | EC17: 2.266435059 | ED17: 0 | EE17: 0 | EF17: 0 | EG17: 0 | EH17: 0 | EI17: 0 | EJ17: 0 | EK17: 3.104446045 | EL17: 0 | EM17: 2.856435059 | EN17: 3.327379639 | EO17: 0 | EP17: 0.05785958862 | EQ17: 5.73260791 | ER17: 0 | ES17: 1.68619519 | ET17: 0 | EU17: 4.164118652 | EV17: 0 | EW17: 0 | EX17: 0 | EY17: 0 | EZ17: 0 | FA17: 0.0007929888964 | FB17: 0 | FC17: 0 | FD17: 5.941014648 | FE17: 3.585023437 | FF17: 0.02138392258 | FG17: 0 | FH17: 0 | FI17: 0 | FJ17: 0 | FK17: 0 | FL17: 0 | FM17: 0 | FN17: 14.97263379 | FO17: 9.713329102 | FP17: 0 | FQ17: 0 | FR17: 0 | FS17: 0.0002638085186 | FT17: 0 | FU17: 0.06824756622 | FV17: 0.007074572563 | FW17: 0.00155063355 | FX17: 0 | FY17: 0.8363399048 | FZ17: 0.02633722305 | GA17: 5.351751953 | GB17: 1.363348145
A18: Subtotal water resource management | B18: =SUM(B17:B17) -> 0.2130600281 | C18: 9.531711914 | D18: 0 | E18: 0 | F18: 0 | G18: 0 | H18: 0 | I18: 0 | J18: 0 | K18: 0 | L18: 3.872768066 | M18: 0 | N18: 4.974799316 | O18: 16.96990625 | P18: 0.01108440971 | Q18: 0 | R18: 0 | S18: 0 | T18: 0 | U18: 0 | V18: 0 | W18: 0.002384999752 | X18: 0.02262891006 | Y18: 0 | Z18: 0 | AA18: 0 | AB18: 0.003839562178 | AC18: 2.93644458 | AD18: 0 | AE18: 0 | AF18: 0 | AG18: 0.002450130463 | AH18: =SUM(AH17:AH17) -> 5.802364258 | AI18: 6.383871582 | AJ18: 49.40210547 | AK18: 1.619193726 | AL18: 0.01654100609 | AM18: 0.005565000057 | AN18: 0.0007871157527 | AO18: 0 | AP18: 0 | AQ18: 0 | AR18: 0 | AS18: 0 | AT18: 0.007154999256 | AU18: 0 | AV18: 0.001590000033 | AW18: 0 | AX18: 0.0007107584476 | AY18: 0 | AZ18: 0.1311750031 | BA18: 0 | BB18: 0 | BC18: 3.80169043 | BD18: 0 | BE18: 0 | BF18: 0 | BG18: 0 | BH18: 0.3556622925 | BI18: 0 | BJ18: 0 | BK18: 10.37614746 | BL18: 7.514335938 | BM18: 0.4998854065 | BN18: =SUM(BN17:BN17) -> 0.4985594788 | BO18: 0.6363748779 | BP18: 0 | BQ18: 0 | BR18: 0.002672053814 | BS18: 0.0247026825 | BT18: 0.007611926079 | BU18: 0 | BV18: 0.1749000092 | BW18: 0 | BX18: 1.776824951 | BY18: 19.14280664 | BZ18: 0 | CA18: 0 | CB18: 0 | CC18: 0 | CD18: 0 | CE18: 0 | CF18: 0 | CG18: 0 | CH18: 0 | CI18: 0 | CJ18: 7.822652344 | CK18: 0 | CL18: 0.1096331635 | CM18: 0 | CN18: 0 | CO18: 0 | CP18: 0.02701771164 | CQ18: 0 | CR18: 1.524974854 | CS18: 0 | CT18: =SUM(CT17:CT17) -> 0 | CU18: 0 | CV18: 0 | CW18: 0 | CX18: 0 | CY18: 0 | CZ18: 0 | DA18: 0 | DB18: 2.928974121 | DC18: 0 | DD18: 0 | DE18: 0 | DF18: 16.78638086 | DG18: 0 | DH18: 0.1931849823 | DI18: 0 | DJ18: 0 | DK18: 11.35957422 | DL18: 0.9719841309 | DM18: 0 | DN18: 5.410490723 | DO18: 0.001583091378 | DP18: 0.092130867 | DQ18: 14.24524902 | DR18: 80.71730469 | DS18: 0.007949999809 | DT18: 0 | DU18: 0 | DV18: 0.002384129524 | DW18: 0 | DX18: 0 | DY18: 0.8800651245 | DZ18: =SUM(DZ17:DZ17) -> 0 | EA18: 0.005565000057 | EB18: 0.02755359268 | EC18: 2.266435059 | ED18: 0 | EE18: 0 | EF18: 0 | EG18: 0 | EH18: 0 | EI18: 0 | EJ18: 0 | EK18: 3.104446045 | EL18: 0 | EM18: 2.856435059 | EN18: 3.327379639 | EO18: 0 | EP18: 0.05785958862 | EQ18: 5.73260791 | ER18: 0 | ES18: 1.68619519 | ET18: 0 | EU18: 4.164118652 | EV18: 0 | EW18: 0 | EX18: 0 | EY18: 0 | EZ18: 0 | FA18: 0.0007929888964 | FB18: 0 | FC18: 0 | FD18: 5.941014648 | FE18: 3.585023437 | FF18: =SUM(FF17:FF17) -> 0.02138392258 | FG18: 0 | FH18: 0 | FI18: 0 | FJ18: 0 | FK18: 0 | FL18: 0 | FM18: 0 | FN18: 14.97263379 | FO18: 9.713329102 | FP18: 0 | FQ18: 0 | FR18: 0 | FS18: 0.0002638085186 | FT18: 0 | FU18: 0.06824756622 | FV18: 0.007074572563 | FW18: 0.00155063355 | FX18: 0 | FY18: 0.8363399048 | FZ18: 0.02633722305 | GA18: 5.351751953 | GB18: 1.363348145

Sheet Tabelle1
A1: country | B1: pop_2016_2017rev | C1: deaths | D1: att_tot_deaths | E1: att_deaths_tot_110 | F1: att_deaths_tot_340_350_360 | G1: att_deaths_tot_380 | H1: att_deaths_0_4_550 | I1: att_deaths_tot_310 | J1: att_deaths_tot_250 | K1: att_deaths_tot_270 | L1: att_deaths_tot_220 | M1: att_deaths_tot_300 | N1: att_deaths_tot_280 | O1: att_deaths_tot_1570
A2: Afghanistan | B2: 34656027 | C2: 248220.0649 | D2: 9483.94043 | E2: 4703.032689 | F2: 49.78295898 | G2: 2289.337776 | H2: 71.53703756 | I2: 0 | J2: 0 | K2: 0 | L2: 213.0600281 | M2: 0.2408419997 | N2: 0 | O2: 2156.950195
A3: Angola | B3: 28813475 | C3: 225708.3476 | D3: 29632.78516 | E3: 13273.69647 | F3: 76.91877747 | G3: 3541.553497 | H3: 714.5869183 | I3: 0 | J3: 295.3420742 | K3: 0 | L3: 9531.711914 | M3: 3.077631474 | N3: 0 | O3: 2195.896729
A4: Albania | B4: 2926346 | C4: 26085.12967 | D4: 85.70350647 | E4: 4.61160155 | F4: 0.02476706356 | G4: 53.7247923 | H4: 0.2333790629 | I4: 0 | J4: 0 | K4: 0 | L4: 0 | M4: 0 | N4: 0 | O4: 27.10896492
A5: Andorra | B5: 77280.87319 | D5: 0 | F5: 0 | G5: 0 | H5: 0 | I5: 0 | J5: 0 | K5: 0 | L5: 0 | M5: 0 | N5: 0 | O5: 0
A6: United Arab Emirates | B6: 9269610 | C6: 15095.35952 | D6: 84.60429382 | E6: 2.60201192 | F6: 0 | G6: 30.47478774 | H6: 0 | I6: 0 | J6: 0 | K6: 0 | L6: 0 | M6: 0 | N6: 0 | O6: 51.52749634
A7: Argentina | B7: 43847430 | C7: 327980.8265 | D7: 4012.400146 | E7: 156.1525773 | F7: 0.1554343551 | G7: 3516.528816 | H7: 2.833103056 | I7: 0 | J7: 0 | K7: 0 | L7: 0 | M7: 0.002060594968 | N7: 0 | O7: 336.728241
A8: Armenia | B8: 2924817 | C8: 28180.71905 | D8: 81.08139801 | E8: 5.144503907 | F8: 0.0256533958 | G8: 40.59363758 | H8: 0.003198262624 | I8: 0 | J8: 0 | K8: 0 | L8: 0 | M8: 0 | N8: 0 | O8: 35.31440735
A9: Antigua and Barbuda | B9: 100965 | C9: 647.08683 | D9: 3.92932725 | E9: 0.1137314632 | F9: 0 | G9: 2.800092943 | H9: 0 | I9: 0 | J9: 0 | K9: 0 | L9: 0 | M9: 0 | N9: 0 | O9: 1.01550293
A10: Australia | B10: 24125844 | C10: 159501.3619 | D10: 466.9266357 | E10: 23.00529025 | F10: 0 | G10: 334.2898877 | H10: 0 | I10: 0 | J10: 0 | K10: 0 | L10: 0 | M10: 0 | N10: 0 | O10: 109.6314697
A11: Austria | B11: 8712134 | C11: 80651.30879 | D11: 132.4310455 | E11: 10.77956863 | F11: 0 | G11: 98.7550507 | H11: 0 | I11: 0 | J11: 0 | K11: 0 | L11: 0 | M11: 0 | N11: 0 | O11: 22.89642525
A12: Azerbaijan | B12: 9725378 | C12: 62509.55429 | D12: 450.0436401 | E12: 107.6850136 | F12: 0.1552745551 | G12: 173.3316779 | H12: 1.072548385 | I12: 0 | J12: 0 | K12: 0 | L12: 0 | M12: 0 | N12: 0 | O12: 167.7991333
A13: Burundi | B13: 10524125 | C13: 95027.82287 | D13: 13229.02539 | E13: 6368.909169 | F13: 48.11531448 | G13: 1445.036002 | H13: 465.8768083 | I13: 0 | J13: 119.5674381 | K13: 0 | L13: 3872.768066 | M13: 3.179114819 | N13: 0 | O13: 905.5724487
A14: Belgium | B14: 11358376 | C14: 110692.3798 | D14: 580.2975464 | E14: 32.00262019 | F14: 0 | G14: 504.3401755 | H14: 0 | I14: 0 | J14: 0 | K14: 0 | L14: 0 | M14: 0 | N14: 0 | O14: 43.95477295
A15: Benin | B15: 10872305 | C15: 98439.11851 | D15: 14035.38477 | E15: 5985.489816 | F15: 77.58052826 | G15: 1733.803974 | H15: 430.9631705 | I15: 0 | J15: 185.9467898 | K15: 0 | L15: 4974.799316 | M15: 9.543709755 | N15: 0 | O15: 637.2579346
A16: Burkina Faso | B16: 18646436 | C16: 159445.7287 | D16: 29933.27539 | E16: 8688.521665 | F16: 70.01587677 | G16: 2324.260065 | H16: 497.7870531 | I16: 0 | J16: 293.3457867 | K16: 0 | L16: 16969.90625 | M16: 6.11781311 | N16: 0 | O16: 1083.320923
A17: Bangladesh | B17: 162951549 | C17: 855700.5949 | D17: 33447.82422 | E17: 19084.2772 | F17: 55.35213089 | G17: 4018.495462 | H17: 244.7517048 | I17: 0 | J17: 0 | K17: 0 | L17: 11.08440971 | M17: 832.8624878 | N17: 0 | O17: 9200.999023
A18: Bulgaria | B18: 7131487 | C18: 106411.3718 | D18: 307.5018616 | E18: 9.125307451 | F18: 0 | G18: 193.0821075 | H18: 0.06283994953 | I18: 0.3784315884 | J18: 0 | K18: 0 | L18: 0 | M18: 0 | N18: 0 | O18: 104.8531876
A19: Bahrain | B19: 1425173 | C19: 2791.863475 | D19: 12.27766037 | E19: 0.5524447831 | F19: 0 | G19: 5.745282092 | H19: 0 | I19: 0 | J19: 0 | K19: 0 | L19: 0 | M19: 0 | N19: 0 | O19: 5.979933262
A20: Bahamas | B20: 391232 | C20: 2396.492917 | D20: 16.4065876 | E20: 0.2553073518 | F20: 0 | G20: 7.911575328 | H20: 0 | I20: 0 | J20: 0 | K20: 0 | L20: 0 | M20: 0 | N20: 0 | O20: 8.239705086
A21: Bosnia and Herzegovina | B21: 3516814 | C21: 38436.21328 | D21: 71.20829773 | E21: 2.768526139 | F21: 0 | G21: 45.90846123 | H21: 0 | I21: 0 | J21: 0 | K21: 0 | L21: 0 | M21: 0 | N21: 0 | O21: 22.53131485
A22: Belarus | B22: 9480052 | C22: 118744.1464 | D22: 662.222229 | E22: 4.845725709 | F22: 0 | G22: 108.1390424 | H22: 0.05094323415 | I22: 0 | J22: 0 | K22: 0 | L22: 0 | M22: 0 | N22: 0 | O22: 549.1865234
A23: Belize | B23: 366954 | C23: 2015.885046 | D23: 28.57166862 | E23: 3.310285536 | F23: 0.0946944654 | G23: 11.5905188 | H23: 0.1369044192 | I23: 0 | J23: 0 | K23: 0 | L23: 0 | M23: 0.5163420439 | N23: 0 | O23: 12.92292404
A24: Bolivia (Plurinational State of) | B24: 10887879 | C24: 71215.85938 | D24: 1883.723022 | E24: 554.0210798 | F24: 5.511627197 | G24: 700.6029784 | H24: 47.7317581 | I24: 0 | J24: 0 | K24: 0 | L24: 2.384999752 | M24: 23.71719551 | N24: 0 | O24: 549.7533569
A25: Brazil | B25: 207652860 | C25: 1320398.887 | D25: 17276.36133 | E25: 2097.925491 | F25: 18.93885422 | G25: 9951.977714 | H25: 57.75904706 | I25: 0 | J25: 48.96881842 | K25: 0.2562029362 | L25: 22.62891006 | M25: 779.9657593 | N25: 0.03960480168 | O25: 4297.900879
A26: Barbados | B26: 284993 | C26: 3219.189304 | D26: 24.55670547 | E26: 0.4656170826 | F26: 0 | G26: 23.71840868 | H26: 0 | I26: 0 | J26: 0 | K26: 0 | L26: 0 | M26: 0 | N26: 0 | O26: 0.3726787865
A27: Brunei Darussalam | B27: 423195 | C27: 1634.166519 | D27: 12.74058914 | E27: 0.1857938403 | F27: 0 | G27: 5.035924158 | H27: 0 | I27: 0 | J27: 0 | K27: 0 | L27: 0 | M27: 0 | N27: 0 | O27: 7.518871784
A28: Bhutan | B28: 797753 | C28: 4705.377976 | D28: 89.72814941 | E28: 30.82992988 | F28: 0.4009543657 | G28: 26.59511864 | H28: 0.2782758863 | I28: 0 | J28: 0 | K28: 0 | L28: 0 | M28: 2.705599308 | N28: 0 | O28: 28.91827202
A29: Botswana | B29: 2250256 | C29: 15753.61417 | D29: 453.3430786 | E29: 257.1965804 | F29: 0.1827510446 | G29: 140.5777355 | H29: 7.401324706 | I29: 0 | J29: 4.002172282 | K29: 0 | L29: 3.839562178 | M29: 0 | N29: 0 | O29: 40.14292908
A30: Central African Republic | B30: 4594618 | C30: 59918.26702 | D30: 8034.615234 | E30: 3577.472663 | F30: 48.74901962 | G30: 791.5473958 | H30: 146.5624509 | I30: 0 | J30: 77.19702896 | K30: 0 | L30: 2936.44458 | M30: 1.082474351 | N30: 0 | O30: 455.5592041
A31: Canada | B31: 36289816 | C31: 256223.0375 | D31: 907.043457 | E31: 133.1110188 | F31: 0 | G31: 605.5930305 | H31: 0 | I31: 0 | J31: 0 | K31: 0 | L31: 0 | M31: 0 | N31: 0 | O31: 168.3394012
A32: Switzerland | B32: 8401744 | C32: 67771.73706 | D32: 203.6929474 | E32: 11.58068957 | F32: 0 | G32: 160.807067 | H32: 0 | I32: 0 | J32: 0 | K32: 0 | L32: 0 | M32: 0 | N32: 0 | O32: 31.30519676
A33: Chile | B33: 17909759 | C33: 109611.7411 | D33: 601.2985229 | E33: 36.2492947 | F33: 0 | G33: 378.0649046 | H33: 0 | I33: 0 | J33: 0 | K33: 0 | L33: 0 | M33: 0 | N33: 0 | O33: 186.9842987
A34: China | B34: 1411415363 | C34: 10372671.85 | D34: 68865.71875 | E34: 3593.085509 | F34: 35.33232117 | G34: 24082.91249 | H34: 51.32982877 | I34: 0 | J34: 15.72613049 | K34: 0 | L34: 2.450130463 | M34: 5.18651247 | N34: 0 | O34: 41079.69141
A35: C�te d'Ivoire | B35: 23695923 | C35: 276715.0711 | D35: 24292.72656 | E35: 10273.42615 | F35: 279.3123169 | G35: 4443.068456 | H35: 621.7286951 | I35: 0 | J35: 583.6777806 | K35: 0 | L35: 5802.364258 | M35: 34.97722244 | N35: 0 | O35: 2254.170166
A36: Cameroon | B36: 23439194 | C36: 234767.1869 | D36: 22760.60938 | E36: 9865.826525 | F36: 260.5428467 | G36: 3602.643915 | H36: 457.0991958 | I36: 0 | J36: 319.449102 | K36: 0 | L36: 6383.871582 | M36: 10.57860374 | N36: 0 | O36: 1860.598877
A37: Democratic Republic of the Congo | B37: 78736162 | C37: 740929.0159 | D37: 115576.1406 | E37: 42621.26577 | F37: 753.0371704 | G37: 11135.26601 | H37: 3675.217791 | I37: 0 | J37: 630.637297 | K37: 0 | L37: 49402.10547 | M37: 17.34725761 | N37: 0 | O37: 7341.269531
A38: Congo | B38: 5125827 | C38: 38396.56568 | D38: 4349.751465 | E38: 1867.269956 | F38: 12.0690136 | G38: 415.9087074 | H38: 104.7993975 | I38: 0 | J38: 31.59469496 | K38: 0 | L38: 1619.193726 | M38: 0.3737169206 | N38: 0 | O38: 298.5418701
A39: Cook Islands | B39: 17378.8323 | D39: 0 | F39: 0 | G39: 0 | J39: 0 | O39: 0
A40: Colombia | B40: 48653432 | C40: 282432.3192 | D40: 2901.678467 | E40: 315.2891088 | F40: 11.81574726 | G40: 1157.367574 | H40: 39.30606452 | I40: 0 | J40: 0 | K40: 0 | L40: 16.54100609 | M40: 310.4461975 | N40: 0 | O40: 1050.912598
A41: Comoros | B41: 795603 | C41: 5834.494618 | D41: 543.8134155 | E41: 386.0934546 | F41: 1.181835413 | G41: 100.5527062 | H41: 16.38891316 | I41: 0 | J41: 0 | K41: 0 | L41: 5.565000057 | M41: 0.217858687 | N41: 0 | O41: 33.81366348
A42: Cape Verde | B42: 539559 | C42: 2946.082032 | D42: 82.33111572 | E42: 21.90294379 | F42: 0.003953621257 | G42: 43.07231048 | H42: 0.4133113201 | I42: 0 | J42: 0 | K42: 0 | L42: 0.7871157527 | M42: 0.02506543696 | N42: 0 | O42: 16.12640953
A43: Costa Rica | B43: 4857274 | C43: 24642.44534 | D43: 225.6366577 | E43: 41.23476628 | F43: 0.5570551157 | G43: 80.26057587 | H43: 0.1687274804 | I43: 0 | J43: 0 | K43: 0 | L43: 0 | M43: 2.30069685 | N43: 0 | O43: 101.11483
A44: Cuba | B44: 11475979 | C44: 98481.57878 | D44: 1011.990906 | E44: 116.6224354 | F44: 0.9152016044 | G44: 719.1108568 | H44: 0.2455638724 | I44: 0 | J44: 0 | K44: 0 | L44: 0 | M44: 0.004624184221 | N44: 0 | O44: 175.0922089
A45: Cyprus | B45: 1170128 | C45: 8261.400458 | D45: 28.34714317 | E45: 3.2655443 | F45: 0 | G45: 10.79766945 | H45: 0 | I45: 0 | J45: 0 | K45: 0 | L45: 0 | M45: 0 | N45: 0 | O45: 14.28392887
A46: Czech Republic | B46: 10610950 | C46: 107731.2862 | D46: 406.077179 | E46: 18.97041993 | F46: 0 | G46: 306.5799908 | H46: 0 | I46: 0 | J46: 0 | K46: 0 | L46: 0 | M46: 0 | N46: 0 | O46: 80.52675629
A47: Germany | B47: 81914668 | C47: 920556.6725 | D47: 2714.381592 | E47: 480.4214429 | F47: 0 | G47: 1985.068337 | H47: 0 | I47: 0 | J47: 0 | K47: 0 | L47: 0 | M47: 0 | N47: 0 | O47: 248.8918762
A48: Djibouti | B48: 942344 | C48: 7421.400221 | D48: 445.5569458 | E48: 281.1796969 | F48: 0.3015280068 | G48: 85.31091906 | H48: 13.34476268 | I48: 0 | J48: 7.459947706 | K48: 0 | L48: 7.154999256 | M48: 0.09728103131 | N48: 0 | O48: 50.70781326
A49: Dominica | B49: 73542.31766 | D49: 0 | F49: 0 | G49: 0 | J49: 0 | O49: 0
A50: Denmark | B50: 5711867 | C50: 51690.83881 | D50: 215.4896545 | E50: 17.04336916 | F50: 0 | G50: 181.7938699 | H50: 0 | I50: 0 | J50: 0 | K50: 0 | L50: 0 | M50: 0 | N50: 0 | O50: 16.65241241
A51: Dominican Republic | B51: 10648787 | C51: 65668.43519 | D51: 879.9715576 | E51: 224.2187792 | F51: 0.4432799518 | G51: 267.0695195 | H51: 10.19015307 | I51: 0 | J51: 2.927480445 | K51: 0 | L51: 1.590000033 | M51: 166.5561066 | N51: 0 | O51: 206.9762726
A52: Algeria | B52: 40606051 | C52: 190284.442 | D52: 2535.808838 | E52: 749.163601 | F52: 1.683906674 | G52: 1235.062738 | H52: 7.362444236 | I52: 0 | J52: 10.18985809 | K52: 0 | L52: 0 | M52: 0 | N52: 0 | O52: 532.3463135
A53: Ecuador | B53: 16385070 | C53: 84168.56476 | D53: 1072.07251 | E53: 91.33886385 | F53: 2.212353945 | G53: 577.8330223 | H53: 8.722368354 | I53: 0 | J53: 0 | K53: 0 | L53: 0.7107584476 | M53: 34.89020538 | N53: 0 | O53: 356.3648376
A54: Egypt | B54: 95688682 | C54: 608440.8457 | D54: 6118.717285 | E54: 1853.775113 | F54: 4.288362503 | G54: 2813.446466 | H54: 57.81876609 | I54: 0 | J54: 28.26469944 | K54: 0 | L54: 0 | M54: 6.006529808 | N54: 0 | O54: 1355.117188
A55: Eritrea | B55: 4954643 | C55: 34258.70318 | D55: 3193.772461 | E55: 2177.913184 | F55: 4.16940546 | G55: 533.1461922 | H55: 75.47309566 | I55: 0 | J55: 68.08375872 | K55: 0 | L55: 131.1750031 | M55: 0.4227491021 | N55: 0 | O55: 203.3889313
A56: Spain | B56: 46347577 | C56: 418496.8319 | D56: 1398.522705 | E56: 70.35921998 | F56: 0 | G56: 1098.365509 | H56: 0 | I56: 0 | J56: 0 | K56: 0 | L56: 0 | M56: 0 | N56: 0 | O56: 229.7979279
A57: Estonia | B57: 1312451 | C57: 15268.58923 | D57: 51.67763519 | E57: 0.08228879922 | F57: 0 | G57: 24.00311713 | H57: 0 | I57: 0 | J57: 0 | K57: 0 | L57: 0 | M57: 0 | N57: 0 | O57: 27.59222794
A58: Ethiopia | B58: 102403200 | C58: 700108.823 | D58: 64278.39844 | E58: 42923.95415 | F58: 194.5573273 | G58: 9962.75531 | H58: 1594.813812 | I58: 0 | J58: 946.3673319 | K58: 0 | L58: 3801.69043 | M58: 16.12819862 | N58: 0 | O58: 4838.131348
A59: Finland | B59: 5503131 | C59: 53369.01769 | D59: 95.65785217 | E59: 1.990007576 | F59: 0 | G59: 26.00678675 | H59: 0 | I59: 0 | J59: 0 | K59: 0 | L59: 0 | M59: 0 | N59: 0 | O59: 67.66105652
A60: Fiji | B60: 898766 | C60: 6462.280286 | D60: 112.3083878 | E60: 25.32747962 | F60: 0.2053430974 | G60: 30.78231673 | H60: 0.420708269 | I60: 0 | J60: 0 | K60: 0 | L60: 0 | M60: 2.660816431 | N60: 0 | O60: 52.91172028
A61: France | B61: 64720689 | C61: 557644.3451 | D61: 2162.151367 | E61: 171.748863 | F61: 0 | G61: 1532.507196 | H61: 0 | I61: 0 | J61: 0 | K61: 0 | L61: 0 | M61: 0 | N61: 0 | O61: 457.8953857
A62: Micronesia (Federated States of) | B62: 104936 | C62: 643.0964035 | D62: 14.74243546 | E62: 3.528578819 | F62: 0.06764996797 | G62: 4.94412286 | H62: 0.1499173878 | I62: 0 | J62: 0 | K62: 0 | L62: 0 | M62: 0.07151097059 | N62: 0 | O62: 5.98065424
A63: Gabon | B63: 1979787 | C63: 15004.22915 | D63: 1050.499512 | E63: 387.5861362 | F63: 3.366567135 | G63: 165.3705759 | H63: 16.47679878 | I63: 0 | J63: 9.400340607 | K63: 0 | L63: 355.6622925 | M63: 0.3040839136 | N63: 0 | O63: 112.3327103
A64: United Kingdom | B64: 65788589 | C64: 600259.5505 | D64: 3510.110596 | E64: 129.6994438 | F64: 0 | G64: 3218.927291 | H64: 0 | I64: 0 | J64: 0 | K64: 0 | L64: 0 | M64: 0 | N64: 0 | O64: 161.4839172
A65: Georgia | B65: 3925402 | C65: 56803.72928 | D65: 184.2579041 | E65: 7.049312353 | F65: 0 | G65: 69.12631472 | H65: 0.007946528486 | I65: 0 | J65: 0 | K65: 0 | L65: 0 | M65: 0 | N65: 0 | O65: 108.0743256
A66: Ghana | B66: 28206727 | C66: 221311.2353 | D66: 20208.6875 | E66: 4786.43308 | F66: 38.75923538 | G66: 3283.824534 | H66: 487.7747296 | I66: 0 | J66: 332.7981886 | K66: 0 | L66: 10376.14746 | M66: 10.37581921 | N66: 0 | O66: 892.5738525
A67: Guinea | B67: 12395916 | C67: 117227.6172 | D67: 16013.63184 | E67: 5143.884112 | F67: 136.3647308 | G67: 2083.211477 | H67: 252.5346421 | I67: 0 | J67: 202.2376744 | K67: 0 | L67: 7514.335938 | M67: 5.218754292 | N67: 0 | O67: 675.8452148
A68: Gambia | B68: 2038507 | C68: 15601.32463 | D68: 1456.293091 | E68: 555.0899706 | F68: 2.232815981 | G68: 241.2758611 | H68: 47.28695596 | I68: 0 | J68: 15.46287675 | K68: 0 | L68: 499.8854065 | M68: 1.180572033 | N68: 0 | O68: 93.87870789
A69: Guinea-Bissau | B69: 1815702 | C69: 16495.82558 | D69: 1489.825073 | E69: 609.3104534 | F69: 8.215594292 | G69: 255.8524442 | H69: 22.91478636 | I69: 0 | J69: 17.11809916 | K69: 0 | L69: 498.5594788 | M69: 0.7260178328 | N69: 0 | O69: 77.12828064
A70: Equatorial Guinea | B70: 1221495 | C70: 11573.02765 | D70: 1237.361328 | E70: 249.9529874 | F70: 5.778538704 | G70: 174.3790024 | H70: 16.53313549 | I70: 0 | J70: 9.048915746 | K70: 0 | L70: 636.3748779 | M70: 0.3012862802 | N70: 0 | O70: 144.9925079
A71: Greece | B71: 11183715 | C71: 121082.7076 | D71: 763.0078125 | E71: 4.149107348 | F71: 0 | G71: 556.1207611 | H71: 0 | I71: 0 | J71: 0 | K71: 0 | L71: 0 | M71: 0 | N71: 0 | O71: 202.7378998
A72: Grenada | B72: 107319 | C72: 777.7486943 | D72: 8.997841835 | E72: 0.3423820121 | F72: 0.001245247433 | G72: 6.033342749 | H72: 0.02429371843 | I72: 0 | J72: 0 | K72: 0 | L72: 0 | M72: 0.0006850620266 | N72: 0 | O72: 2.595892668
A73: Guatemala | B73: 16582465 | C73: 80149.01707 | D73: 2135.749756 | E73: 962.9007362 | F73: 13.11927509 | G73: 800.3715572 | H73: 67.87509858 | I73: 0 | J73: 0 | K73: 0 | L73: 2.672053814 | M73: 61.87685394 | N73: 0.03565936908 | O73: 226.8986816
A74: Guyana | B74: 773302 | C74: 6555.598265 | D74: 176.8641663 | E74: 26.62553938 | F74: 0.1201325282 | G74: 28.57200601 | H74: 1.470311806 | I74: 0 | J74: 0 | K74: 0 | L74: 24.7026825 | M74: 2.301285744 | N74: 0 | O74: 93.07221222
A75: Honduras | B75: 9112865 | C75: 39436.30624 | D75: 658.9182739 | E75: 318.6184451 | F75: 3.240314245 | G75: 91.43510367 | H75: 7.926425491 | I75: 0 | J75: 0 | K75: 0 | L75: 7.611926079 | M75: 79.65118408 | N75: 0 | O75: 150.4348297
A76: Croatia | B76: 4213267 | C76: 51547.01624 | D76: 106.856041 | E76: 4.718274274 | F76: 0 | G76: 53.79356342 | H76: 0 | I76: 0 | J76: 0 | K76: 0 | L76: 0 | M76: 0 | N76: 0 | O76: 48.34420395
A77: Haiti | B77: 10847338 | C77: 92251.01408 | D77: 4930.672363 | E77: 2436.327383 | F77: 14.4237442 | G77: 837.1770945 | H77: 130.0344774 | I77: 0 | J77: 0 | K77: 0 | L77: 174.9000092 | M77: 131.0816803 | N77: 0 | O77: 1206.727905
A78: Hungary | B78: 9753278 | C78: 127098.0596 | D78: 201.6212463 | E78: 23.37895021 | F78: 0 | G78: 106.6395497 | H78: 0 | I78: 0 | J78: 0 | K78: 0 | L78: 0 | M78: 0 | N78: 0 | O78: 71.60275269
A79: Indonesia | B79: 261115454 | C79: 1863048.308 | D79: 38258.35938 | E79: 18192.65021 | F79: 179.0218964 | G79: 5938.510996 | H79: 54.70652621 | I79: 0 | J79: 4.912174634 | K79: 0 | L79: 1776.824951 | M79: 5720.769531 | N79: 0 | O79: 6390.962402
A80: India | B80: 1324171357 | C80: 9568619.338 | D80: 410623.4688 | E80: 243551.2915 | F80: 529.223999 | G80: 74261.90336 | H80: 2007.353343 | I80: 0 | J80: 0 | K80: 0 | L80: 19142.80664 | M80: 23794.15625 | N80: 0 | O80: 47336.73438
A81: Ireland | B81: 4726076 | C81: 30647.73854 | D81: 135.7953033 | E81: 3.5043057 | F81: 0 | G81: 100.9495545 | H81: 0 | I81: 0 | J81: 0 | K81: 0 | L81: 0 | M81: 0 | N81: 0 | O81: 31.3414402
A82: Iran (Islamic Republic of) | B82: 80277430 | C82: 371465.437 | D82: 2641.9104 | E82: 784.4394131 | F82: 1.002571702 | G82: 1275.845253 | H82: 4.916495006 | I82: 0 | J82: 0 | K82: 0 | L82: 0 | M82: 0 | N82: 0 | O82: 575.706604
A83: Iraq | B83: 37202581 | C83: 189638.6118 | D83: 2488.277588 | E83: 1109.034912 | F83: 0.7563411593 | G83: 931.0488619 | H83: 19.21324978 | I83: 0 | J83: 6.26282131 | K83: 0 | L83: 0 | M83: 0 | N83: 0 | O83: 421.9616089
A84: Iceland | B84: 332472 | C84: 2247.523507 | D84: 8.198843002 | E84: 0.3442571019 | F84: 0 | G84: 5.855451044 | H84: 0 | I84: 0 | J84: 0 | K84: 0 | L84: 0 | M84: 0 | N84: 0 | O84: 1.999134898
A85: Israel | B85: 8191822 | C85: 44509.7664 | D85: 256.2042542 | E85: 20.20700925 | F85: 0 | G85: 209.2631051 | H85: 0 | I85: 0 | J85: 0 | K85: 0 | L85: 0 | M85: 0 | N85: 0 | O85: 26.73415375
A86: Italy | B86: 59429943 | C86: 639800.9724 | D86: 1531.901245 | E86: 81.51661639 | F86: 0 | G86: 1214.681296 | H86: 0 | I86: 0 | J86: 0 | K86: 0 | L86: 0 | M86: 0 | N86: 0 | O86: 235.7033386
A87: Jamaica | B87: 2881355 | C87: 19726.88959 | D87: 95.95506287 | E87: 16.65805027 | F87: 0.353192836 | G87: 60.24386617 | H87: 0.6701594464 | I87: 0 | J87: 0 | K87: 0 | L87: 0 | M87: 0.8114933372 | N87: 0 | O87: 17.21829987
A88: Jordan | B88: 9455799 | C88: 36424.57079 | D88: 308.3877258 | E88: 57.88887352 | F88: 0.2997927368 | G88: 158.547062 | H88: 1.040055766 | I88: 0 | J88: 0.3739036658 | K88: 0 | L88: 0 | M88: 0 | N88: 0 | O88: 90.23802185
A89: Japan | B89: 127748505 | C89: 1310724.8 | D89: 16291.26855 | E89: 212.8789607 | F89: 0 | G89: 12128.94605 | H89: 0 | I89: 0 | J89: 0 | K89: 0 | L89: 0 | M89: 0 | N89: 0 | O89: 3949.443115
A90: Kazakhstan | B90: 17987740 | C90: 147924.8869 | D90: 1069.381958 | E90: 68.19865287 | F90: 0.2362575829 | G90: 384.3975601 | H90: 0.4789164567 | I90: 0 | J90: 0 | K90: 0 | L90: 0 | M90: 0 | N90: 0 | O90: 616.0706177
A91: Kenya | B91: 48461564 | C91: 284118.3211 | D91: 36818.88281 | E91: 24191.59678 | F91: 32.82614899 | G91: 2895.643207 | H91: 565.8979521 | I91: 0 | J91: 214.1986939 | K91: 0 | L91: 7822.652344 | M91: 6.664134979 | N91: 0 | O91: 1089.403442
A92: Kyrgyzstan | B92: 5955737 | C92: 36428.39678 | D92: 327.3208923 | E92: 45.97256271 | F92: 0.09391626716 | G92: 121.1259207 | H92: 0.1462615509 | I92: 0 | J92: 0 | K92: 0 | L92: 0 | M92: 0 | N92: 0 | O92: 159.9822388
A93: Cambodia | B93: 15762371 | C93: 93022.13835 | D93: 3445.062744 | E93: 906.0428406 | F93: 3.938967466 | G93: 1032.286482 | H93: 13.2138286 | I93: 0 | J93: 0.2220916661 | K93: 0 | L93: 109.6331635 | M93: 69.75791931 | N93: 0 | O93: 1309.967651
A94: Kiribati | B94: 114388 | C94: 792.0200034 | D94: 29.67009544 | E94: 17.85186007 | F94: 0.009071892127 | G94: 6.980348577 | H94: 1.194158692 | I94: 0 | J94: 0 | K94: 0 | L94: 0 | M94: 0.06659582257 | N94: 0 | O94: 3.568060875
A95: Saint Kitts and Nevis | B95: 54820.03216 | D95: 0 | F95: 0 | G95: 0 | H95: 0 | I95: 0 | J95: 0 | K95: 0 | L95: 0 | M95: 0 | N95: 0 | O95: 0
A96: Republic of Korea | B96: 50791925 | C96: 281030.7445 | D96: 1984.610352 | E96: 63.64062889 | F96: 0 | G96: 1599.557944 | H96: 0 | I96: 0 | J96: 0 | K96: 0 | L96: 0 | M96: 0 | N96: 0 | O96: 321.4117126
A97: Kuwait | B97: 4052581 | C97: 11023.21724 | D97: 105.0934525 | E97: 0.5008450828 | F97: 0 | G97: 90.30580753 | H97: 0 | I97: 0 | J97: 0 | K97: 0 | L97: 0 | M97: 0 | N97: 0 | O97: 14.28679371
A98: Lao People's Democratic Republic | B98: 6758354 | C98: 47241.27479 | D98: 1789.60022 | E98: 611.8451192 | F98: 91.59983063 | G98: 434.3379909 | H98: 17.69191716 | I98: 0 | J98: 0 | K98: 0 | L98: 27.01771164 | M98: 45.73974609 | N98: 0 | O98: 561.367981
A99: Lebanon | B99: 6006669 | C99: 38307.5117 | D99: 174.7191315 | E99: 47.19868871 | F99: 0.008694508113 | G99: 76.97057611 | H99: 0.04998263995 | I99: 0 | J99: 0 | K99: 0 | L99: 0 | M99: 0 | N99: 0 | O99: 50.49118042
A100: Liberia | B100: 4613828 | C100: 36596.03408 | D100: 4138.554688 | E100: 1835.146808 | F100: 25.49203682 | G100: 505.2454511 | H100: 56.08967259 | I100: 0 | J100: 38.21758081 | K100: 0 | L100: 1524.974854 | M100: 2.143319607 | N100: 0 | O100: 151.2453308
A101: Libya | B101: 6293254 | C101: 33671.79652 | D101: 268.9664917 | E101: 36.11192584 | F101: 0.2097298205 | G101: 131.3253546 | H101: 0.3488709973 | I101: 0 | J101: 0.793989254 | K101: 0 | L101: 0 | M101: 0 | N101: 0 | O101: 100.1766052
A102: Saint Lucia | B102: 178011 | C102: 1328.387479 | D102: 15.87893391 | E102: 1.102396473 | F102: 0.0007465787348 | G102: 5.507342023 | H102: 0.01594401041 | I102: 0 | J102: 0 | K102: 0 | L102: 0 | M102: 0.3858532608 | N102: 0 | O102: 8.866650581
A103: Sri Lanka | B103: 20798491 | C103: 143424.8655 | D103: 2295.484131 | E103: 245.1644069 | F103: 2.032531023 | G103: 588.9289241 | H103: 0.3107212835 | I103: 0 | J103: 0 | K103: 0 | L103: 0 | M103: 329.5411377 | N103: 0 | O103: 1129.506226
A104: Lesotho | B104: 2203825 | C104: 29885.65614 | D104: 1334.227661 | E104: 944.1256151 | F104: 1.98601377 | G104: 280.0098856 | H104: 31.43147991 | I104: 0 | J104: 0 | K104: 0 | L104: 0 | M104: 0 | N104: 0 | O104: 76.67472839
A105: Lithuania | B105: 2908234 | C105: 40867.08744 | D105: 174.1310577 | E105: 2.341586111 | F105: 0 | G105: 57.32065715 | H105: 0 | I105: 0 | J105: 0 | K105: 0 | L105: 0 | M105: 0 | N105: 0 | O105: 114.4688187
A106: Luxembourg | B106: 575739 | C106: 3906.98815 | D106: 11.24555111 | E106: 0.2792115399 | F106: 0 | G106: 9.75054385 | H106: 0 | I106: 0 | J106: 0 | K106: 0 | L106: 0 | M106: 0 | N106: 0 | O106: 1.215795279
A107: Latvia | B107: 1970526 | C107: 27781.79874 | D107: 122.1816254 | E107: 0.3925934712 | F107: 0 | G107: 35.2126962 | H107: 0 | I107: 0 | J107: 0 | K107: 0 | L107: 0 | M107: 0 | N107: 0 | O107: 86.57633972
A108: Morocco | B108: 35276793 | C108: 181994.9015 | D108: 2028.166504 | E108: 661.432598 | F108: 1.280478716 | G108: 985.5659318 | H108: 8.684202012 | I108: 0 | J108: 11.99633733 | K108: 0 | L108: 0 | M108: 0 | N108: 0 | O108: 359.2069092
A109: Monaco | B109: 38498.638 | D109: 0 | F109: 0 | G109: 0 | H109: 0 | I109: 0 | J109: 0 | K109: 0 | L109: 0 | M109: 0 | N109: 0 | O109: 0
A110: Republic of Moldova | B110: 4059609 | C110: 46789.38332 | D110: 290.8586731 | E110: 3.889732259 | F110: 0.001744295936 | G110: 135.9194923 | H110: 0.003262785306 | I110: 0 | J110: 0 | K110: 0 | L110: 0 | M110: 0 | N110: 0 | O110: 151.0444336
A111: Madagascar | B111: 24894543 | C111: 156056.6817 | D111: 13361.92969 | E111: 7071.366239 | F111: 83.74614716 | G111: 2049.865028 | H111: 370.927086 | I111: 0 | J111: 118.7785421 | K111: 0 | L111: 2928.974121 | M111: 2.630182981 | N111: 0 | O111: 735.6433716
A112: Maldives | B112: 427753 | C112: 1277.936165 | D112: 18.32730865 | E112: 1.293835585 | F112: 0.0009064325714 | G112: 2.921540954 | H112: 0.01355769148 | I112: 0 | J112: 0 | K112: 0 | L112: 0 | M112: 5.119123936 | N112: 0 | O112: 8.97834301
A113: Mexico | B113: 127540430 | C113: 652860.2807 | D113: 5376.232422 | E113: 1279.220463 | F113: 7.771855831 | G113: 2403.886155 | H113: 59.245079 | I113: 0 | J113: 0 | K113: 0 | L113: 0 | M113: 117.0690079 | N113: 0 | O113: 1509.039429
A114: Marshall Islands | B114: 53065.63198 | D114: 0 | F114: 0 | G114: 0 | J114: 0 | O114: 0
A115: The former Yugoslav Republic of Macedonia | B115: 2081200 | C115: 20195.38285 | D115: 29.67580414 | E115: 1.49990738 | F115: 0.008990318514 | G115: 16.49515808 | H115: 0.03815648373 | I115: 0 | J115: 0 | K115: 0 | L115: 0 | M115: 0 | N115: 0 | O115: 11.6335907
A116: Mali | B116: 17994835 | C116: 184172.6849 | D116: 33074.3125 | E116: 12068.90924 | F116: 29.98191643 | G116: 2201.774377 | H116: 627.3082941 | I116: 0 | J116: 195.4308439 | K116: 0 | L116: 16786.38086 | M116: 4.871846676 | N116: 0 | O116: 1159.657227
A117: Malta | B117: 429357 | C117: 3481.912872 | D117: 17.00709343 | E117: 0.1432653314 | F117: 0 | G117: 15.48753646 | H117: 0 | I117: 0 | J117: 0 | K117: 0 | L117: 0 | M117: 0 | N117: 0 | O117: 1.376291513
A118: Myanmar | B118: 52885215 | C118: 430055.9691 | D118: 11239.30859 | E118: 6035.272119 | F118: 100.486969 | G118: 2423.563289 | H118: 55.37792633 | I118: 0 | J118: 0 | K118: 0 | L118: 193.1849823 | M118: 209.9401398 | N118: 0 | O118: 2221.483887
A119: Montenegro | B119: 628614 | C119: 6515.495355 | D119: 10.8186388 | E119: 0.1547149679 | F119: 0.004161174875 | G119: 7.010597541 | H119: 0.001116301489 | I119: 0 | J119: 0 | K119: 0 | L119: 0 | M119: 0 | N119: 0 | O119: 3.648048401
A120: Mongolia | B120: 3027396 | C120: 18688.57815 | D120: 158.8048248 | E120: 31.89484241 | F120: 0 | G120: 48.63362087 | H120: 0.1918699723 | I120: 0 | J120: 0 | K120: 0 | L120: 0 | M120: 0 | N120: 0 | O120: 78.08449554
A121: Mozambique | B121: 28829471 | C121: 257175.2992 | D121: 23386.57812 | E121: 7537.226276 | F121: 126.4932632 | G121: 2604.509253 | H121: 301.5900259 | I121: 0 | J121: 234.1523859 | K121: 0 | L121: 11359.57422 | M121: 7.605734825 | N121: 0 | O121: 1215.428711
A122: Mauritania | B122: 4301022 | C122: 32406.9359 | D122: 3347.232422 | E122: 1574.864039 | F122: 2.265039444 | G122: 539.9168283 | H122: 81.75309647 | I122: 0 | J122: 32.77966021 | K122: 0 | L122: 971.9841309 | M122: 0.420907557 | N122: 0 | O122: 143.2489014
A123: Mauritius | B123: 1262126 | C123: 10021.95663 | D123: 73.36647034 | E123: 7.295250796 | F123: 0.004702541977 | G123: 36.05059922 | H123: 0.1270006689 | I123: 0 | J123: 0 | K123: 0 | L123: 0 | M123: 0.0002413400507 | N123: 0 | O123: 29.88867378
A124: Malawi | B124: 18091580 | C124: 122976.3437 | D124: 12409.33301 | E124: 4750.024462 | F124: 15.3556366 | G124: 1325.212516 | H124: 352.7830969 | I124: 0 | J124: 79.11080328 | K124: 0 | L124: 5410.490723 | M124: 2.44772315 | N124: 0 | O124: 473.9083862
A125: Malaysia | B125: 31187264 | C125: 154100.3489 | D125: 2846.512695 | E125: 126.6264943 | F125: 4.157108307 | G125: 1888.011561 | H125: 0.1997704806 | I125: 0 | J125: 0 | K125: 0 | L125: 1.583091378 | M125: 346.2773438 | N125: 0 | O125: 479.6574707
A126: Namibia | B126: 2479711 | C126: 18938.07412 | D126: 849.104187 | E126: 425.9684129 | F126: 0.2636260986 | G126: 225.3977974 | H126: 27.98061299 | I126: 0 | J126: 3.449062844 | K126: 0 | L126: 92.130867 | M126: 0 | N126: 0 | O126: 73.91387177
A127: Niger | B127: 20672980 | C127: 199311.9004 | D127: 34775.94531 | E127: 13628.24328 | F127: 65.9040451 | G127: 3985.42718 | H127: 945.4149597 | I127: 0 | J127: 235.2770955 | K127: 0 | L127: 14245.24902 | M127: 9.06521225 | N127: 0 | O127: 1661.364868
A128: Nigeria | B128: 185989645 | C128: 2127624.797 | D128: 265967.5 | E128: 119879.1763 | F128: 1721.178589 | G128: 42820.45105 | H128: 6040.961935 | I128: 0 | J128: 2593.298403 | K128: 0 | L128: 80717.30469 | M128: 191.0522156 | N128: 0 | O128: 12004.08398
A129: Nicaragua | B129: 6149929 | C129: 29168.81119 | D129: 512.5391846 | E129: 126.3424961 | F129: 1.710010886 | G129: 118.6636297 | H129: 9.970720558 | I129: 0 | J129: 0 | K129: 0 | L129: 7.949999809 | M129: 16.21472931 | N129: 0 | O129: 231.6876068
A130: Niue | B130: 1623.119182 | D130: 0 | F130: 0 | G130: 0 | J130: 0 | O130: 0
A131: Netherlands | B131: 16987325 | C131: 149088.7478 | D131: 492.8585205 | E131: 40.92637047 | F131: 0 | G131: 403.9945287 | H131: 0 | I131: 0 | J131: 0 | K131: 0 | L131: 0 | M131: 0 | N131: 0 | O131: 47.93760681
A132: Norway | B132: 5254691 | C132: 40914.36869 | D132: 207.1512451 | E132: 11.11843422 | F132: 0 | G132: 163.9763853 | H132: 0 | I132: 0 | J132: 0 | K132: 0 | L132: 0 | M132: 0 | N132: 0 | O132: 32.05641937
A133: Nepal | B133: 28982772 | C133: 182927.4133 | D133: 8008.953125 | E133: 5711.393968 | F133: 10.54772758 | G133: 1193.315486 | H133: 25.20731693 | I133: 0 | J133: 0 | K133: 0 | L133: 2.384129524 | M133: 141.4989929 | N133: 0 | O133: 924.6050415
A134: Nauru | B134: 11346.89233 | D134: 0 | F134: 0 | G134: 0 | H134: 0 | I134: 0 | J134: 0 | K134: 0 | L134: 0 | M134: 0 | N134: 0 | O134: 0
A135: New Zealand | B135: 4660834 | C135: 30611.57406 | D135: 119.91922 | E135: 6.793476163 | F135: 0 | G135: 77.71305505 | H135: 0 | I135: 0 | J135: 0 | K135: 0 | L135: 0 | M135: 0 | N135: 0 | O135: 35.41268921
A136: Oman | B136: 4424757 | C136: 11230.22007 | D136: 101.5654297 | E136: 1.92913578 | F136: 0 | G136: 39.30985919 | H136: 0 | I136: 0 | J136: 0 | K136: 0 | L136: 0 | M136: 0 | N136: 0 | O136: 60.32643509
A137: Pakistan | B137: 193203481 | C137: 1403088.259 | D137: 57378.3125 | E137: 37381.82708 | F137: 70.05651093 | G137: 11072.63921 | H137: 395.1713586 | I137: 0 | J137: 0 | K137: 0 | L137: 880.0651245 | M137: 1127.001221 | N137: 0 | O137: 6451.549805
A138: Panama | B138: 4034124 | C138: 20365.81453 | D138: 291.8052063 | E138: 71.83141809 | F138: 0.7818974257 | G138: 100.2350561 | H138: 3.886501837 | I138: 0 | J138: 0 | K138: 0 | L138: 0 | M138: 9.619548798 | N138: 0 | O138: 105.4507904
A139: Peru | B139: 31773838 | C139: 172498.6202 | D139: 3749.869141 | E139: 375.2524187 | F139: 4.890769482 | G139: 2448.505614 | H139: 23.97263459 | I139: 0 | J139: 0 | K139: 0 | L139: 5.565000057 | M139: 19.75792122 | N139: 0 | O139: 871.9248047
A140: Philippines | B140: 103320224 | C140: 662620.4972 | D140: 21855.55273 | E140: 4113.029656 | F140: 47.62301254 | G140: 10421.39341 | H140: 171.4524407 | I140: 0.318272233 | J140: 46.92806587 | K140: 0 | L140: 27.55359268 | M140: 2858.483154 | N140: 0 | O140: 4168.772461
A141: Palau | B141: 21502.88746 | D141: 0 | F141: 0 | G141: 0 | J141: 0 | O141: 0
A142: Papua New Guinea | B142: 8084993 | C142: 56203.88423 | D142: 4569.662109 | E142: 1266.584916 | F142: 28.06064224 | G142: 546.6600022 | H142: 23.9960718 | I142: 0 | J142: 0 | K142: 0 | L142: 2266.435059 | M142: 1.350455642 | N142: 0 | O142: 436.5746155
A143: Poland | B143: 38224407 | C143: 392170.5472 | D143: 1877.486572 | E143: 34.66819993 | F143: 0 | G143: 1419.062835 | H143: 0 | I143: 0 | J143: 0 | K143: 0 | L143: 0 | M143: 0 | N143: 0 | O143: 423.7554626
A144: Democratic People's Republic of Korea | B144: 25368619 | C144: 222782.5571 | D144: 1880.44812 | E144: 201.3838209 | F144: 2.347618103 | G144: 584.1661343 | H144: 4.114124131 | I144: 0 | J144: 0 | K144: 0 | L144: 0 | M144: 0 | N144: 0 | O144: 1088.436401
A145: Portugal | B145: 10371628 | C145: 107231.5621 | D145: 761.2318726 | E145: 15.84432395 | F145: 0 | G145: 700.4140401 | H145: 0 | I145: 0 | J145: 0 | K145: 0 | L145: 0 | M145: 0 | N145: 0 | O145: 44.9734993
A146: Paraguay | B146: 6725303 | C146: 36359.71122 | D146: 530.9724731 | E146: 92.93658285 | F146: 1.250814676 | G146: 157.8926336 | H146: 4.306734286 | I146: 0 | J146: 0 | K146: 0 | L146: 0 | M146: 79.61343384 | N146: 0 | O146: 194.972229
C147: 16488.43778 | D147: 142.7033844 | E147: 6.052565378 | F147: 0.07585990429 | G147: 94.64611124 | H147: 0.0908269681 | I147: 0 | J147: 0 | K147: 0 | L147: 0 | M147: 0 | N147: 0 | O147: 41.83803177
A148: Qatar | B148: 2569801 | C148: 3958.164868 | D148: 32.58424759 | E148: 0.2069406145 | F148: 0 | G148: 6.246084873 | H148: 0 | I148: 0 | J148: 0 | K148: 0 | L148: 0 | M148: 0 | N148: 0 | O148: 26.13122368
A149: Romania | B149: 19778087 | C149: 257288.6032 | D149: 1382.350708 | E149: 71.34115897 | F149: 0.01554312371 | G149: 856.4120672 | H149: 0.3105259973 | I149: 0 | J149: 0 | K149: 0 | L149: 0 | M149: 0 | N149: 0 | O149: 454.2713928
A150: Russian Federation | B150: 143964510 | C150: 1870038.761 | D150: 10473.76855 | E150: 149.7067698 | F150: 0 | G150: 3993.837442 | H150: 1.087055669 | I150: 0 | J150: 0 | K150: 0 | L150: 0 | M150: 0 | N150: 0 | O150: 6329.136719
A151: Rwanda | B151: 11917511 | C151: 66108.47993 | D151: 6755.941406 | E151: 2164.184918 | F151: 13.66881752 | G151: 838.8901641 | H151: 128.1225363 | I151: 0 | J151: 72.93637518 | K151: 0 | L151: 3104.446045 | M151: 0.7928084135 | N151: 0 | O151: 432.9001465
A152: Saudi Arabia | B152: 32275689 | C152: 113533.4633 | D152: 1070.815063 | E152: 28.63791331 | F152: 0 | G152: 530.0726925 | H152: 0 | I152: 0 | J152: 0 | K152: 0 | L152: 0 | M152: 0 | N152: 0 | O152: 512.1044312
A153: Sudan | B153: 39578826 | C153: 281900.3725 | D153: 15131.75391 | E153: 6636.546525 | F153: 56.64221191 | G153: 2558.530766 | H153: 162.7519912 | I153: 0 | J153: 365.9136806 | K153: 0 | L153: 2856.435059 | M153: 0.4365862012 | N153: 0 | O153: 2494.495605
A154: Senegal | B154: 15411614 | C154: 94093.18665 | D154: 8993.762695 | E154: 3508.620643 | F154: 13.68694687 | G154: 1327.386085 | H154: 156.3316456 | I154: 0 | J154: 95.77707421 | K154: 0 | L154: 3327.379639 | M154: 4.767943382 | N154: 0 | O154: 559.8126831
A155: Singapore | B155: 5622453 | C155: 28469.02976 | D155: 535.1520386 | E155: 3.716815308 | F155: 0 | G155: 526.4511324 | H155: 0 | I155: 0 | J155: 0 | K155: 0 | L155: 0 | M155: 0 | N155: 0 | O155: 4.984079838
A156: Solomon Islands | B156: 599426 | C156: 2771.117797 | D156: 139.4523315 | E156: 35.80464464 | F156: 0.2751376927 | G156: 23.63550157 | H156: 0.9384796531 | I156: 0 | J156: 0 | K156: 0 | L156: 57.85958862 | M156: 0.101184614 | N156: 0 | O156: 20.83779716
A157: Sierra Leone | B157: 7396182 | C157: 89483.42081 | D157: 13893.08789 | E157: 5595.860822 | F157: 112.6880951 | G157: 1382.354472 | H157: 304.0014242 | I157: 0 | J157: 194.1031889 | K157: 0 | L157: 5732.60791 | M157: 7.922765255 | N157: 0 | O157: 563.5489502
A158: El Salvador | B158: 6344720 | C158: 42153.15405 | D158: 659.2603149 | E158: 123.277013 | F158: 0.6881260872 | G158: 232.7533127 | H158: 3.255133835 | I158: 0 | J158: 0 | K158: 0 | L158: 0 | M158: 2.761940241 | N158: 0 | O158: 296.5247803
A159: San Marino | B159: 33202.3527 | D159: 0 | F159: 0 | G159: 0 | H159: 0 | I159: 0 | J159: 0 | K159: 0 | L159: 0 | M159: 0 | N159: 0 | O159: 0
A160: Somalia | B160: 14317989 | C160: 167022.7138 | D160: 18593.19141 | E160: 11756.18213 | F160: 48.40494919 | G160: 3295.484996 | H160: 591.2441842 | I160: 0 | J160: 116.1470353 | K160: 0 | L160: 1686.19519 | M160: 4.439211369 | N160: 0 | O160: 1095.092407
A161: Serbia | B161: 8820081 | C161: 107340.6359 | D161: 302.6193848 | E161: 64.90387877 | F161: 0.002464234596 | G161: 173.0965485 | H161: 0.07786916605 | I161: 0 | J161: 0 | K161: 0 | L161: 0 | M161: 0 | N161: 0 | O161: 64.53861237
A162: South Sudan | B162: 12230730 | C162: 121343.3243 | D162: 14483 | E162: 7510.499864 | F162: 33.58909988 | G162: 1891.53577 | H162: 196.330669 | I162: 0 | J162: 120.0887952 | K162: 0 | L162: 4164.118652 | M162: 1.991453409 | N162: 0 | O162: 564.8459473
A163: Sao Tome and Principe | B163: 199909 | C163: 1137.296015 | D163: 44.2762413 | E163: 20.69257139 | F163: 0.2032733709 | G163: 17.18338927 | H163: 1.816007699 | I163: 0 | J163: 0.50314967 | K163: 0 | L163: 0 | M163: 0 | N163: 0 | O163: 3.877844334
A164: Suriname | B164: 558360 | C164: 3994.613481 | D164: 57.96274567 | E164: 10.77752238 | F164: 0.06401527673 | G164: 18.42017061 | H164: 0.3655104806 | I164: 0 | J164: 0.1465620045 | K164: 0 | L164: 0 | M164: 6.977850914 | N164: 0 | O164: 21.21111679
A165: Slovakia | B165: 5444225 | C165: 51058.43474 | D165: 250.4770508 | E165: 2.425287087 | F165: 0 | G165: 165.2474579 | H165: 0 | I165: 0 | J165: 0 | K165: 0 | L165: 0 | M165: 0 | N165: 0 | O165: 82.80431366
A166: Slovenia | B166: 2077860 | C166: 19966.10993 | D166: 82.07025146 | E166: 0.4392989181 | F166: 0 | G166: 69.59819337 | H166: 0 | I166: 0 | J166: 0 | K166: 0 | L166: 0 | M166: 0 | N166: 0 | O166: 12.03275967
A167: Sweden | B167: 9837541 | C167: 91163.12328 | D167: 323.2818909 | E167: 21.16808794 | F167: 0 | G167: 231.9137381 | H167: 0 | I167: 0 | J167: 0 | K167: 0 | L167: 0 | M167: 0 | N167: 0 | O167: 70.20006561
A168: Swaziland | B168: 1343098 | C168: 12995.52536 | D168: 571.0336914 | E168: 349.2171118 | F168: 1.677551389 | G168: 138.0627162 | H168: 23.73607277 | I168: 0 | J168: 4.356705439 | K168: 0 | L168: 0.7929888964 | M168: 0 | N168: 0 | O168: 53.19058228
A169: Seychelles | B169: 94229 | C169: 784.6620775 | D169: 11.98216152 | E169: 0.1533102089 | F169: 0 | G169: 5.440273801 | H169: 0 | I169: 0 | J169: 0 | K169: 0 | L169: 0 | M169: 0 | N169: 0 | O169: 6.388577461
A170: Syrian Arab Republic | B170: 18430453 | C170: 150401.4424 | D170: 1047.073608 | E170: 668.5946329 | F170: 0.8232411742 | G170: 260.7848904 | H170: 6.131617375 | I170: 0 | J170: 1.316423526 | K170: 0 | L170: 0 | M170: 0 | N170: 0 | O170: 109.422905
A171: Chad | B171: 14452545 | C171: 173767.9352 | D171: 26160.34766 | E171: 13889.40328 | F171: 82.16494751 | G171: 4061.520224 | H171: 631.7348846 | I171: 0 | J171: 239.280657 | K171: 0 | L171: 5941.014648 | M171: 5.265029907 | N171: 0 | O171: 1309.96228
A172: Togo | B172: 7606369 | C172: 64681.99043 | D172: 8269.27832 | E172: 2985.416168 | F172: 34.93327713 | G172: 1016.777351 | H172: 146.4308168 | I172: 0 | J172: 115.9737224 | K172: 0 | L172: 3585.023438 | M172: 3.544478655 | N172: 0 | O172: 381.1792297
A173: Thailand | B173: 68863519 | C173: 539060.0641 | D173: 11567.56738 | E173: 1895.03928 | F173: 9.599133492 | G173: 5190.37352 | H173: 0.2343954536 | I173: 0 | J173: 0 | K173: 0 | L173: 21.38392258 | M173: 253.2795715 | N173: 0 | O173: 4197.657227
A174: Tajikistan | B174: 8734951 | C174: 46135.49535 | D174: 1030.012573 | E174: 226.5025162 | F174: 0.7649697065 | G174: 401.1438481 | H174: 8.617891898 | I174: 0 | J174: 0 | K174: 0 | L174: 0 | M174: 0 | N174: 0 | O174: 392.9833984
A175: Turkmenistan | B175: 5662542 | C175: 39581.85827 | D175: 573.7633667 | E175: 223.9548073 | F175: 0.327239275 | G175: 195.0781049 | H175: 0.9540069641 | I175: 0 | J175: 0 | K175: 0 | L175: 0 | M175: 0 | N175: 0 | O175: 153.4492493
A176: Timor-Leste | B176: 1268667 | C176: 7191.573894 | D176: 260.4849854 | E176: 121.2087664 | F176: 2.568143368 | G176: 75.26301392 | H176: 1.989748488 | I176: 0 | J176: 0 | K176: 0 | L176: 0 | M176: 2.35025835 | N176: 0 | O176: 57.10505295
A177: Tonga | B177: 107118 | C177: 631.5840186 | D177: 10.85764408 | E177: 1.492531429 | F177: 0.006037217565 | G177: 4.359963617 | H177: 0.02834833527 | I177: 0 | J177: 0 | K177: 0 | L177: 0 | M177: 1.770132065 | N177: 0 | O177: 3.200631142
A178: Trinidad and Tobago | B178: 1364965 | C178: 12117.99714 | D178: 66.35411072 | E178: 1.92014422 | F178: 0 | G178: 27.75005882 | H178: 0 | I178: 0 | J178: 0 | K178: 0 | L178: 0 | M178: 0 | N178: 0 | O178: 36.68390656
A179: Tunisia | B179: 11403249 | C179: 72140.8328 | D179: 599.2142334 | E179: 114.46622 | F179: 0.3152241111 | G179: 367.6097148 | H179: 0.99277279 | I179: 0 | J179: 0 | K179: 0 | L179: 0 | M179: 0 | N179: 0 | O179: 115.8302689
A180: Turkey | B180: 79512426 | C180: 455391.9927 | D180: 2089.103516 | E180: 230.3225828 | F180: 1.205763817 | G180: 988.5487451 | H180: 3.590902019 | I180: 0 | J180: 0 | K180: 0 | L180: 0 | M180: 0 | N180: 0 | O180: 865.4354248
A181: Tuvalu | B181: 11096.15426 | D181: 0 | F181: 0 | G181: 0 | J181: 0 | O181: 0
A182: United Republic of Tanzania | B182: 55572195 | C182: 408734.2322 | D182: 44494.67578 | E182: 20043.26324 | F182: 191.7016296 | G182: 5468.651994 | H182: 1106.552987 | I182: 0 | J182: 383.1565614 | K182: 0 | L182: 14972.63379 | M182: 7.909475327 | N182: 0 | O182: 2320.805664
A183: Uganda | B183: 41487969 | C183: 296581.7006 | D183: 29690.57422 | E183: 12413.60963 | F183: 106.1676559 | G183: 4207.079834 | H183: 573.389687 | I183: 0 | J183: 326.0015872 | K183: 0 | L183: 9713.329102 | M183: 12.64410114 | N183: 0 | O183: 2338.35083
A184: Ukraine | B184: 44438626 | C184: 635702.7641 | D184: 2894.022461 | E184: 116.4225265 | F184: 0 | G184: 666.7205099 | H184: 2.94918987 | I184: 0 | J184: 0 | K184: 0 | L184: 0 | M184: 0 | N184: 0 | O184: 2107.930176
A185: Uruguay | B185: 3444012 | C185: 32739.1721 | D185: 169.3588562 | E185: 12.36051433 | F185: 0 | G185: 117.0983988 | H185: 0 | I185: 0 | J185: 0 | K185: 0 | L185: 0 | M185: 0 | N185: 0 | O185: 39.89995575
A186: United States of America | B186: 322179605 | C186: 2802154.547 | D186: 8897.166992 | E186: 745.6814157 | F186: 0 | G186: 5684.37658 | H186: 0 | I186: 0 | J186: 0 | K186: 0 | L186: 0 | M186: 0 | N186: 0 | O186: 2467.108887
A187: Uzbekistan | B187: 31446789 | C187: 171443.7936 | D187: 1503.809692 | E187: 137.2548684 | F187: 0.2403128445 | G187: 628.4741409 | H187: 1.344605081 | I187: 0 | J187: 0 | K187: 0 | L187: 0.2638085186 | M187: 0 | N187: 0 | O187: 736.2319946
A188: Saint Vincent and the Grenadines | B188: 109644 | C188: 892.1759286 | D188: 10.29199696 | E188: 1.444601776 | F188: 0.0004743507598 | G188: 4.825785686 | H188: 0.01621799042 | I188: 0 | J188: 0 | K188: 0 | L188: 0 | M188: 0.1311198026 | N188: 0 | O188: 3.873797178
A189: Venezuela (Bolivarian Republic of) | B189: 31568183 | C189: 180955.8743 | D189: 1943.628662 | E189: 416.8462637 | F189: 8.960618019 | G189: 724.9070418 | H189: 13.08546155 | I189: 0 | J189: 0.02035379871 | K189: 0 | L189: 68.24756622 | M189: 71.16695404 | N189: 0.06978303194 | O189: 640.3245239
A190: Viet Nam | B190: 94569066 | C190: 548836.0487 | D190: 8494.416016 | E190: 898.2638325 | F190: 25.86364365 | G190: 2260.104587 | H190: 0.04191881039 | I190: 0 | J190: 0 | K190: 0 | L190: 7.074572563 | M190: 240.5948486 | N190: 0 | O190: 5062.473145
A191: Vanuatu | B191: 270405 | C191: 1316.072866 | D191: 48.19257736 | E191: 27.25065031 | F191: 0.3275359571 | G191: 10.06826633 | H191: 0.5918864793 | I191: 0 | J191: 0 | K191: 0 | L191: 1.55063355 | M191: 0.03806509078 | N191: 0 | O191: 8.365538597
A192: Samoa | B192: 195137 | C192: 955.3911941 | D192: 14.19146538 | E192: 2.786171259 | F192: 0.02376764268 | G192: 6.812579399 | H192: 0.09518963883 | I192: 0 | J192: 0 | K192: 0 | L192: 0 | M192: 0.1078324541 | N192: 0 | O192: 4.365923405
A193: Yemen | B193: 27584209 | C193: 174122.0175 | D193: 6708.455566 | E193: 2779.06979 | F193: 7.63677454 | G193: 1614.376921 | H193: 27.78856446 | I193: 0 | J193: 46.70009821 | K193: 0 | L193: 836.3399048 | M193: 0.2079762965 | N193: 0 | O193: 1396.335693
A194: South Africa | B194: 56015475 | C194: 525807.8513 | D194: 14509.5625 | E194: 7243.00016 | F194: 4.888043404 | G194: 5382.988207 | H194: 408.7839179 | I194: 0 | J194: 108.4031024 | K194: 0 | L194: 26.33722305 | M194: 0 | N194: 0 | O194: 1335.162476
A195: Zambia | B195: 16591381 | C195: 124816.9746 | D195: 13545.20898 | E195: 5329.631005 | F195: 35.14286804 | G195: 1571.201043 | H195: 427.730404 | I195: 0 | J195: 97.43867921 | K195: 0 | L195: 5351.751953 | M195: 1.481292605 | N195: 0 | O195: 730.8319092
A196: Zimbabwe | B196: 16150357 | C196: 129736.2031 | D196: 7413.750977 | E196: 3472.470362 | F196: 16.95739937 | G196: 1659.520234 | H196: 475.6050728 | I196: 0 | J196: 45.93356003 | K196: 0 | L196: 1363.348145 | M196: 0.4757333994 | N196: 0 | O196: 379.4405212
A206: country | B206: pop_2016_2017rev | C206: daly | D206: att_tot_daly | E206: att_daly_tot_110 | F206: att_daly_tot_340_350_360 | G206: att_daly_tot_380 | H206: att_daly_0_4_550 | I206: att_daly_tot_310 | J206: att_daly_tot_250 | K206: att_daly_tot_270 | L206: att_daly_tot_220 | M206: att_daly_tot_300 | N206: att_daly_tot_280 | O206: att_daly_tot_1570
A207: Afghanistan | B207: 34656027 | C207: 18144447.54 | D207: 860782.25 | E207: 455218.2757 | F207: 28957.99609 | G207: 183037.4917 | H207: 9780.383064 | I207: 1636.138428 | J207: 0 | K207: 0 | L207: 15479.25684 | M207: 1128.104004 | N207: 0 | O207: 165544.6406
A208: Angola | B208: 28813475 | C208: 16720334.68 | D208: 2301028 | E208: 984780.8321 | F208: 25657.98828 | G208: 267827.3276 | H208: 67799.7402 | I208: 0 | J208: 23168.61924 | K208: 17843.84766 | L208: 737558 | M208: 1301.328491 | N208: 684.104126 | O208: 174406.25
A209: Albania | B209: 2926346 | C209: 883875.6636 | D209: 4099.196777 | E209: 919.6215147 | F209: 1.349423885 | G209: 1486.423389 | H209: 104.1130982 | I209: 0 | J209: 0 | K209: 0 | L209: 0 | M209: 0 | N209: 0 | O209: 1587.689209
... 192 more rows
